{"text_format":"1","workbook":"xlsx","n_sheets":27,"sheets":["표지","연구과제 단계별 절차","목차","1","2","3","4","5","6","7","8","9","10","11","12","13","14","Ⅰ","Ⅱ","Ⅲ","Ⅳ","Ⅴ","Ⅵ","Ⅶ","국가 및 도시별 등급 구분","국외여비 지급표","연구과제분류"],"not_rendered":{"charts":0,"images":6,"macros":1,"external_links":1,"defined_names":42,"comments":1,"pivot_tables":0},"unopened":[],"bounds":{"document_bytes":16777216,"sheet_cells":100000,"rows_first":2000,"rows_last":500,"rows_between":2000,"halvings":0,"cell_chars":16384,"cell_head_chars":4096},"cells_cut":0,"cells_raw":0,"read":"whole","date_system":"1900"}

{"sheet":"표지","index":0,"n_rows":0,"n_cols":0,"rows_kept":0,"cut":false,"hidden":false,"merged":[]}

{"sheet":"연구과제 단계별 절차","index":1,"n_rows":23,"n_cols":22,"rows_kept":23,"cut":false,"hidden":false,"merged":[[1,17,1,21],[1,9,1,15],[1,1,1,7],[11,17,13,17],[11,19,13,19],[11,21,13,21],[15,17,17,17],[15,19,17,19],[15,21,17,21],[11,15,13,15],[11,13,13,13],[15,15,16,15],[15,11,16,11],[11,1,13,1],[11,3,13,3],[11,7,13,7],[11,9,13,9],[11,11,13,11],[15,1,16,1],[15,3,16,3],[15,5,16,5],[15,7,16,7],[15,9,16,9]]}
[]
[null,"연구과제 신청단계 (과제신청→과제협약→과제생성)",null,null,null,null,null,null,null,"연구과제 집행단계 (연구비 신청→집행)",null,null,null,null,null,null,null,"연구과제 종료단계 (집행완료→내부감사→실적보고)"]
[]
[null,"내용",null,"주요내용",null,"서식",null,"주체",null,"내용",null,"주요내용",null,"서식",null,"주체",null,"내용",null,"주요내용",null,"주체"]
[]
[null,"사업공고 안내",null," ▷ 정부부처 및 산학협력단 홈페이지",null,null,null,"지원기관\n산학협력단",null,"연구비 신청",null," ▷ 연구비 청구 공문 제출\n ▷ 연구비 선집행 신청 : 필요시",null,null,null,"연구책임자\n수행기관\n산학협력단\n지원기관",null,"연구비 상시점검",null," ▷ 연구비 집행 상시점검 및 보완자료 제출",null,"지원기관\n연구책임자\n산학협력단"]
[]
[null,"사업신청서 접수",null," ▷ 사업신청서 및 계획서 접수 \n    - 제출서류 : 연구과제 신청서(수행기관→산단)\n    - 신청서 마감 5일전까지 요청",null,"연구과제 신청서",null,"연구책임자\n수행기관\n산학협력단",null,"실행예산 \n등록(변경)",null," ▷ 연구과제 실행예산 신청 및 변경 승인",null,"ERP 시스템≫예산≫\n(변경)신청서 작성",null,"연구책임자\n수행기관\n산학협력단",null,"연구비 집행완료",null," ▷ 연구과제 기간 내 연구비 집행 완료",null,"연구책임자\n수행기관\n산학협력단"]
[]
[null,"사업신청서 검토\n및 지원기관 송부",null," ▷ 사업신청서 및 계획서 검토 \n   - 최소 1일정도 소요\n ▷  지원기관 송부",null,null,null,"산학협력단",null,"참여인력\n등록(변경)",null," ▷참여인력 신청 및 변경 승인",null,"ERP 시스템≫참여인력≫\n(변경)신청서 작성",null,"연구책임자\n수행기관\n산학협력단",null,"상시감사",null," ▷ 연구과제 상시감사",null,"산학협력단"]
[]
[null,"과제선정 및 협약",null," ▷ 과제선정 통보 및 협약체결\n   - 제출서류 : 협약체결 요청서(수행기관→산단)\n   - 협약체결 마감 5일전까지 요청\n ▷ 연구비(선금 포함) 청구 : 필요시",null,"협약체결 요청서",null,"연구책임자\n수행기관\n산학협력단\n지원기관",null,"연구비카드 신청",null," ▷ 연구비 카드 신청서 제출\n ▷ 카드발급 승인 및 카드사 카드발급 요청",null,null,null,"연구책임자\n수행기관\n산학협력단",null,"정산보고",null," ▷ 연구비 사용실적보고서 제출\n ▷ 지원기관 정산내역 보고",null,"연구책임자\n수행기관\n산학협력단\n지원기관"]
[null,null,null,null,null,"연구계약서(※필요시)"]
[null,null,null,null,null,"견적서(※필요시)"]
[]
[null,"협약체결 알림 및\n과제등록",null," ▷ 협약체결 알림(산단→수행기관)\n ▷ ERP시스템을 통하여 과제 등록",null,null,null,"연구책임자\n수행기관\n산학협력단",null,"연구비 청구",null," ▷ 연구비 지출 청구 및 증빙서류 제출",null,"ERP시스템≫청구서",null,"연구책임자",null,"과제종료 및\n이월승인",null," ▷ 연구과제 종료 처리 및 이월승인",null,"산학협력단"]
[null,null,null,null,null,null,null,null,null,null,null,null,null,"연구비 청구 서식"]
[]
[null,null,null,null,null,null,null,null,null,"연구비 청구서류\n 접수 및 검토",null," ▷ 연구비 청구 서류 접수, 검토 및 보완",null,null,null,"산학협력단"]
[]
[null,null,null,null,null,null,null,null,null,"연구비 집행(지출)",null," ▷ 연구비 청구 서류 승인 및 집행(지출)",null,null,null,"산학협력단"]
[]
[null,null,null,null,null,null,null,null,null,"세무처리",null," ▷ 과세대상자 세금납부 및 신고\n   - 부가가치세 신고\n   - 원천세 및 4대 보험 세액 확인",null,null,null,"산학협력단"]

{"sheet":"목차","index":2,"n_rows":95,"n_cols":19,"rows_kept":95,"cut":false,"hidden":false,"merged":[[25,2,25,6],[6,2,6,6],[24,2,24,6],[22,2,22,6],[7,2,7,6],[8,1,18,1],[8,2,8,6],[13,11,13,17],[13,9,13,10],[17,9,18,10],[13,2,13,6],[12,2,12,6],[15,14,15,17],[16,2,16,6],[11,2,11,6],[18,11,18,17],[17,2,17,6],[17,11,17,17],[15,11,15,13],[20,9,20,10],[0,1,0,19],[4,1,7,1],[13,18,13,19],[14,9,14,10],[14,11,14,17],[19,2,19,6],[14,2,14,6],[15,2,15,6],[3,2,3,6],[18,2,18,6],[10,2,10,6],[9,2,9,6],[4,2,4,6],[5,2,5,6],[14,18,14,19],[15,9,16,10],[15,18,15,19],[16,11,16,13],[16,14,16,17],[16,18,16,19],[17,18,17,19],[18,18,18,19],[19,9,19,10],[19,11,19,17],[19,18,19,19],[39,17,39,19],[39,12,39,16],[38,12,38,16],[38,17,38,19],[38,3,38,6],[39,3,39,6],[26,2,26,6],[40,1,43,1],[40,3,40,6],[41,3,41,6],[37,3,37,6],[42,3,42,6],[43,3,43,6],[38,9,39,11],[37,9,37,11],[37,12,37,16],[37,17,37,19],[19,1,26,1],[23,2,23,6],[20,2,20,6],[21,2,21,6],[20,11,20,17],[20,18,20,19],[55,3,55,6],[56,3,56,6],[56,16,56,19],[55,16,55,19],[56,11,57,12],[55,11,55,15],[55,9,55,10],[56,9,61,10],[57,3,57,6],[58,3,58,6],[59,3,59,6],[58,16,58,19],[57,16,57,19],[61,11,61,15],[60,11,60,15],[59,11,59,15],[73,3,73,6],[58,11,58,15],[57,13,57,15],[73,11,73,15],[73,9,73,10],[74,9,74,10],[56,13,56,15],[61,16,61,19],[60,16,60,19],[59,16,59,19],[94,9,94,10],[92,3,92,6],[90,9,90,10],[91,9,93,10],[74,16,74,19],[73,16,73,19],[74,11,74,15],[90,3,90,6],[91,3,91,6],[91,11,91,15],[77,3,77,6],[76,3,76,6],[90,16,90,19],[90,11,90,15],[94,16,94,19],[91,16,91,19],[93,16,93,19],[92,16,92,19],[94,11,94,15],[93,11,93,15],[92,11,92,15],[74,3,74,6],[75,3,75,6],[78,3,78,6]]}
[null,"부산대학교 산학협력단 표준 연구비 청구 서식 모음"]
[]
[]
[null,"구분","서식명",null,null,null,null,"Sheet No.",null,"인건비 · 학생인건비"]
[null,"협약\n서식","연구과제 신청서",null,null,null,null,"1",null,"■ 청구 절차"]
[null,null,"연구과제 협약체결 요청서",null,null,null,null,"2"]
[null,null,"연구계약서",null,null,null,null,"3"]
[null,null,"견적서",null,null,null,null,"4"]
[null,"청구\n서식","개인정보활용동의서",null,null,null,null,"5"]
[null,null,"연구과제 참여 계약서",null,null,null,null,"6"]
[null,null,"외부 참여연구자 기관장 확인서",null,null,null,null,"7"]
[null,null,"중앙구매",null,null,null,null,8]
[null,null,"회의계획서",null,null,null,null,"9",null,"■ 등록 및 변경 시 제출서류"]
[null,null,"세미나개최계획서/세미나정산보고서/특강료영수증",null,null,null,null,"10",null,"구분",null,"제출서류",null,null,null,null,null,null,"서식"]
[null,null,"공무국외출장계획서/ 공무출장결과보고서",null,null,null,null,"11",null,"부산대학교 소속",null,"보안서약서* 및 개인정보활용동의서",null,null,null,null,null,null,"서식 바로가기"]
[null,null,"논문게재료 신청서/부실학회자가점검표/서약서",null,null,null,null,"12",null,"소속이 없는 경우",null,"1개월 이상 과제 참여 시",null,null,"고용계약서",null,null,null,"서식 바로가기"]
[null,null,"연구수당 신청서/연구수당지급 평가서",null,null,null,null,"13",null,null,null,"프리랜서 또는 개인사업자",null,null,"연구과제참여계약서",null,null,null,"서식 바로가기"]
[null,null,"연구비 선 집행 상세 명세서",null,null,null,null,"14",null,"타 기관 소속",null,"외부참여연구자 기관장 확인서**",null,null,null,null,null,null,"서식 바로가기"]
[null,null,"고용계약서",null,null,null,null,"연구원 임용관련 업무지침",null,null,null,"보안서약서 및 개인정보활용동의서",null,null,null,null,null,null,"서식 바로가기"]
[null,"기타","연구참여확약서",null,null,null,null,"연구지원포털서비스",null,"학생연구자",null,"연구참여확약서",null,null,null,null,null,null,"서식 바로가기"]
[null,null,"특수관계자 연구참여 신청서",null,null,null,null,"Ⅰ",null,"연구근접지원인력",null,"고용계약서",null,null,null,null,null,null,"서식 바로가기"]
[null,null,"연구비지불확인서",null,null,null,null,"Ⅱ",null," * 보안서약서는 지원기관 서식 따름"]
[null,null,"인건비 현황표",null,null,null,null,"Ⅲ",null," ** 타 기관으로 KORUS 공문 처리 必"]
[null,null,"일용근로계약서/일용직 인건비 활용 내역서",null,null,null,null,"Ⅳ"]
[null,null,"수행기관변경동의서",null,null,null,null,"Ⅴ"]
[null,null,"국외여비 계산기",null,null,null,null,"Ⅵ"]
[null,null,"간접비 계산기",null,null,null,null,"Ⅶ"]
[]
[]
[null,"연구시설·장비, 연구재료비",null,null,null,null,null,null,null,"전문가활용비"]
[null,"■ 청구 절차",null,null,null,null,null,null,null,"■ 청구 절차"]
[]
[]
[]
[]
[]
[null,"■ 청구 시 제출서류",null,null,null,null,null,null,null,"■ 청구 시 제출서류"]
[null,"구분",null,"제출서류",null,null,null,"서식",null,"구분",null,null,"제출서류",null,null,null,null,"서식"]
[null,"직접구매",null,"기타지급 사용내역서",null,null,null,"ERP시스템  입력",null,"회의수당, 강사료, \n자문료 등",null,null,"전문가활용내역서(자문료 등)",null,null,null,null,"ERP시스템 입력"]
[null,null,null,"거래명세서 등 증빙서류",null,null,null,"ERP시스템 업로드",null,null,null,null,"기타 증빙서류",null,null,null,null,"ERP시스템 업로드"]
[null,"중앙구매","공통서류","구매요청서",null,null,null,"ERP시스템 입력 "]
[null,null,"①물품","관련 증빙서류",null,null,null,"서식 바로가기"]
[null,null,"②용역,공사 등","관련 증빙서류",null,null,null,"서식 바로가기"]
[null,null,"③도서","관련 증빙서류",null,null,null,{"$f":"$H$43","v":"서식 바로가기"}]
[]
[]
[]
[null,"회의비·세미나 개최비",null,null,null,null,null,null,null,"여비"]
[null,"■ 청구 절차",null,null,null,null,null,null,null,"■ 청구 절차"]
[]
[]
[]
[]
[]
[null,"■ 청구 시 제출서류",null,null,null,null,null,null,null,"■ 청구 시 제출서류"]
[null,"구분",null,"제출서류",null,null,null,"서식",null,"구분",null,"제출서류",null,null,null,null,"서식"]
[null,"공통",null,"회의록",null,null,null,"ERP시스템 입력",null,"국내\n국외",null,"출장신청서",null,"전임교원,근로소득자",null,null,"KORUS 출장신청서"]
[null,"(필요 시)",null,"회의계획서",null,null,null,"서식 바로가기",null,null,null,null,null,"학부생, 대학원생",null,null,"ERP시스템 입력"]
[null,null,null,"세미나 개최 계획서",null,null,null,"서식 바로가기",null,null,null,"공무국외출장계획서 ",null,null,null,null,"서식 바로가기"]
[null,null,null,"세미나  정산보고서",null,null,null,"서식 바로가기",null,null,null,"공무출장결과보고서",null,null,null,null,"서식 바로가기"]
[null,null,null,null,null,null,null,null,null,null,null,"출입국증명서",null,null,null,null,"인터넷 발급 바로가기"]
[null,null,null,null,null,null,null,null,null,null,null,"기타 증빙서류",null,null,null,null,"ERP시스템 업로드"]
[]
[]
[]
[null,"학회등록비/도서구입비",null,null,null,null,null,null,null,"야근·특근 식대"]
[null,"■ 청구 절차",null,null,null,null,null,null,null,"■ 청구 절차"]
[]
[]
[]
[]
[]
[null,"■ 청구 시 제출서류",null,null,null,null,null,null,null,"■ 청구 시 제출서류"]
[null,"구분",null,"제출서류",null,null,null,"서식",null,"구분",null,"제출서류",null,null,null,null,"서식"]
[null,"학회등록비",null,"세미나 참가내역, 교육훈련내역",null,null,null,"ERP시스템 입력",null,"야근·특근 식대",null,"초과근무일지 및 식대 신청서",null,null,null,null,"ERP시스템 입력"]
[null,null,null,"기타 증빙서류",null,null,null,"ERP시스템 업로드"]
[null,"도서구입비",null,"도서구입목록 및 검사.검수조서",null,null,null,"ERP시스템 입력"]
[null,null,null,"도서등록내역서",null,null,null,"ERP시스템 입력"]
[null,null,null,"기타 증빙서류",null,null,null,"ERP시스템 업로드"]
[]
[]
[]
[null,"논문게재료",null,null,null,null,null,null,null,"연구수당/보안수당"]
[null,"■ 청구 절차",null,null,null,null,null,null,null,"■ 청구 절차"]
[]
[]
[]
[]
[]
[null,"■ 청구 시 제출서류",null,null,null,null,null,null,null,"■ 청구 시 제출서류"]
[null,"구분",null,"제출서류",null,null,null,"서식",null,"구분",null,"제출서류",null,null,null,null,"서식"]
[null,"논문게재료",null,"논문게재료 신청서",null,null,null,"서식 바로가기",null,"연구수당",null,"연구수당신청서 및 연구수당지급 평가서",null,null,null,null,"ERP시스템 입력"]
[null,null,null,"부실학회자가점검표, 서약서",null,null,null,"서식 바로가기",null,null,null,"연구수당신청서 ",null,null,null,null,"서식 바로가기"]
[null,null,null,null,null,null,null,null,null,null,null,"연구수당지급 평가서",null,null,null,null,"서식 바로가기"]
[null,null,null,null,null,null,null,null,null,"보안수당",null,"보안수당 지급신청서",null,null,null,null,"서식 바로가기"]

{"sheet":"1","index":3,"n_rows":46,"n_cols":28,"rows_kept":46,"cut":false,"hidden":false,"merged":[[32,20,32,25],[33,8,33,10],[33,11,33,25],[34,8,34,10],[34,11,34,17],[34,18,34,19],[43,14,43,18],[44,14,44,18],[37,0,37,25],[38,1,38,25],[39,1,39,25],[40,1,40,25],[41,1,41,25],[42,0,42,25],[36,0,36,25],[35,0,35,25],[29,29,29,36],[30,0,34,0],[30,1,31,7],[30,8,30,10],[30,11,30,14],[30,15,30,25],[31,8,31,11],[31,13,31,20],[31,22,31,25],[32,1,34,7],[25,0,29,0],[27,16,27,19],[28,1,28,7],[28,8,28,15],[28,16,28,25],[29,1,29,7],[29,8,29,14],[29,15,29,16],[34,20,34,25],[29,19,29,25],[32,8,32,10],[32,11,32,17],[32,18,32,19],[27,20,27,25],[25,1,27,7],[25,8,25,15],[25,16,25,19],[25,20,25,25],[26,8,26,15],[26,16,26,19],[26,20,26,25],[27,8,27,15],[22,20,22,25],[23,1,23,7],[23,8,23,15],[20,0,24,0],[20,1,22,7],[20,8,20,15],[20,16,20,19],[20,20,20,25],[21,8,21,15],[21,16,21,19],[21,20,21,25],[22,8,22,15],[22,16,22,19],[23,16,23,25],[24,1,24,7],[24,8,24,17],[24,20,24,22],[16,17,16,25],[9,1,9,5],[9,7,9,10],[9,12,9,19],[9,21,9,24],[11,0,11,25],[12,0,19,0],[12,1,12,7],[12,8,12,25],[13,1,13,7],[13,8,13,25],[19,1,19,7],[19,8,19,17],[19,20,19,22],[3,27,3,39],[43,9,43,10],[8,1,8,25],[45,0,45,25],[43,11,43,13],[44,11,44,13],[4,0,4,25],[3,0,3,25],[17,1,17,7],[17,8,17,25],[18,1,18,7],[18,8,18,25],[7,1,7,25],[5,1,5,3],[5,4,5,13],[5,14,5,16],[5,17,5,25],[6,1,6,25],[14,1,14,7],[14,8,14,25],[15,1,15,7],[15,8,15,25],[16,1,16,7],[16,8,16,10]]}
[]
[]
[]
["연구과제 신청서",null,null,null,null,null,null,null,null,null,null,null,null,null,null,null,null,null,null,null,null,null,null,null,null,null,null,"[ 공문작성 예시 _ KORUS 전자결재 신청]"]
["※ 연구과제 신청 마감일  5일 전까지 제출(기한엄수)_입찰 연구과제는협약 담당자와 사전협의"]
["과제책임자","소속",null,null,null,null,null,null,null,null,null,null,null,null,"성명"]
["과 제 명"]
["수행기관"]
["입찰여부"]
["과제유형",null,null,null,null,null,"(",null,null,null,null,")",null,null,null,null,null,null,null,null,"(",null,null,null,null,")"]
[]
["※ 아래 내용을 확인하시어 해당되는 항목에 체크하여 주시기 바랍니다."]
["국가연구개발사업","관련부처"]
[null,"사업공고"]
[null,"과제형태"]
[null,"3책 5공 적용여부"]
[null,"참여율제한여부",null,null,null,null,null,null,null,null,null,"※최소참여율이 있는경우(    )",null,null,null,null,"%"]
[null,"학생인건비 통합관리 적용여부"]
[null,"연구장비 통합관리 적용여부"]
[null,"간접비 비율",null,null,null,null,null,null,null,null,null,null,null,null,null,null,null,null,null,"%",null,null,null,"(※사유:         )"]
["일반연구용역","관련기관",null,null,null,null,null,null,null,null,null,null,null,null,null,null,"부처명_전문기관명"]
[null,null,null,null,null,null,null,null,null,null,null,null,null,null,null,null,"기업명"]
[null,null,null,null,null,null,null,null,null,null,null,null,null,null,null,null,"부처명_전문기관명"]
[null,"부가가치세 과세여부",null,null,null,null,null,null,null,null,null,null,null,null,null,null,"※ 면세 사유 : "]
[null,"간접비 비율",null,null,null,null,null,null,null,null,null,null,null,null,null,null,null,null,null,"%",null,null,null,"(※사유:         )"]
["학술연구용역","관련기관",null,null,null,null,null,null,null,null,null,null,null,null,null,null,"부처명_전문기관명"]
[null,null,null,null,null,null,null,null,null,null,null,null,null,null,null,null,"기업명"]
[null,null,null,null,null,null,null,null,null,null,null,null,null,null,null,null,"부처명_전문기관명"]
[null,"부가가치세 과세여부",null,null,null,null,null,null,null,null,null,null,null,null,null,null,"※ 면세 사유 : "]
[null,"간접비 비율",null,null,null,null,null,null,"         ",null,null,null,null,null,null,null,null,null,"%"]
["공통기재사항","과제신청형태",null,null,null,null,null,null,null,null,null,"과제신청사이트"]
[null,null,null,null,null,null,null,null,null,null,null,null,"(",null,null,null,null,null,null,null,null,")"]
[null,"과제신청관련 담당자",null,null,null,null,null,null,"소  속",null,null,null,null,null,null,null,null,null,"성명"]
[null,null,null,null,null,null,null,null,"주  소"]
[null,null,null,null,null,null,null,null,"연락처(전화)",null,null,null,null,null,null,null,null,null,"메일주소"]
[]
["상기와 같이 연구과제를 신청합니다."]
[]
["붙임","1. 공고문(사업공고문, 입찰공고문, 과업지시서 등)"]
[null,"2. 계획서(제안요청서 등)"]
[null,"3. 직인 요청서류"]
[null,"4. 기타 필요서류"]
["년       월        일"]
[null,null,null,null,null,null,null,null,null,"신청자:",null,"연구책임자",null,null,null,null,null,null,null,"(인)"]
[null,null,null,null,null,null,null,null,null,null,null,"수행기관장",null,null,null,null,null,null,null,"(인)"]
["부산대학교 산학협력단장 귀하"]

{"sheet":"2","index":4,"n_rows":48,"n_cols":28,"rows_kept":48,"cut":false,"hidden":false,"merged":[[46,14,46,18],[40,1,40,13],[41,1,41,13],[42,1,42,13],[43,1,43,13],[44,0,44,25],[45,14,45,18],[33,11,33,17],[33,18,33,19],[33,20,33,25],[34,8,34,10],[34,11,34,25],[35,8,35,10],[35,11,35,17],[35,18,35,19],[35,20,35,25],[36,0,36,25],[37,0,37,25],[38,0,38,25],[39,1,39,13],[28,29,28,36],[29,0,35,0],[29,1,30,7],[29,8,29,10],[29,11,29,14],[29,15,29,25],[24,0,28,0],[30,8,30,11],[30,13,30,20],[30,22,30,25],[24,1,26,7],[24,8,24,15],[24,16,24,19],[24,20,24,25],[25,8,25,15],[25,16,25,19],[33,1,35,7],[33,8,33,10],[25,20,25,25],[26,8,26,15],[26,16,26,19],[26,20,26,25],[27,1,27,7],[27,8,27,15],[27,16,27,25],[31,15,31,16],[31,20,31,21],[31,24,31,25],[28,1,28,7],[28,8,28,14],[28,15,28,16],[28,19,28,25],[31,1,32,7],[31,11,31,12],[32,11,32,12],[32,16,32,17],[32,20,32,21],[17,1,17,7],[17,8,17,25],[18,1,18,7],[18,8,18,17],[18,20,18,22],[19,0,23,0],[19,1,21,7],[19,8,19,15],[19,16,19,19],[19,20,19,25],[20,8,20,15],[20,16,20,19],[21,8,21,15],[21,16,21,19],[21,20,21,25],[22,1,22,7],[22,8,22,15],[22,16,22,25],[23,1,23,7],[23,8,23,17],[23,20,23,22],[12,8,12,25],[13,1,13,7],[13,8,13,25],[14,1,14,7],[14,8,14,25],[15,1,15,7],[15,8,15,10],[15,17,15,25],[16,1,16,7],[16,8,16,25],[2,27,2,40],[2,0,2,25],[3,0,3,25],[45,11,45,13],[46,11,46,13],[45,9,45,10],[47,0,47,25],[4,1,4,3],[4,4,4,13],[4,14,4,16],[4,17,4,25],[5,1,5,25],[6,1,6,25],[20,20,20,25],[7,1,7,25],[8,1,8,5],[8,7,8,10],[8,12,8,19],[8,21,8,24],[10,0,10,25],[11,0,18,0],[11,1,11,7],[11,8,11,25],[12,1,12,7]]}
[]
[]
["연구과제 협약체결 요청서",null,null,null,null,null,null,null,null,null,null,null,null,null,null,null,null,null,null,null,null,null,null,null,null,null,null,"[ 공문작성 예시 _ KORUS 전자결재 신청]"]
["※ 연구과제 협약체결 마감일 5일 전까지 제출(기한엄수)"]
["과제책임자","소속",null,null,null,null,null,null,null,null,null,null,null,null,"성명"]
["과 제 명"]
["수행기관"]
["입찰여부"]
["과제유형",null,null,null,null,null,"(",null,null,null,null,")",null,null,null,null,null,null,null,null,"(",null,null,null,null,")"]
[]
["※ 아래 내용을 확인하시어 해당되는 항목에 체크하여 주시기 바랍니다."]
["국가연구개발사업","관련부처"]
[null,"사업공고"]
[null,"과제형태"]
[null,"3책 5공 적용여부"]
[null,"참여율제한여부",null,null,null,null,null,null,null,null,null,"※최소참여율이 있는경우(    )",null,null,null,null,"%"]
[null,"학생인건비 통합관리 적용여부"]
[null,"연구장비 통합관리 적용여부"]
[null,"간접비 비율",null,null,null,null,null,null,null,null,null,null,null,null,null,null,null,null,null,"%",null,null,null,"(※사유:         )"]
["일반연구용역","관련기관",null,null,null,null,null,null,null,null,null,null,null,null,null,null,"부처명_전문기관명"]
[null,null,null,null,null,null,null,null,null,null,null,null,null,null,null,null,"기업명"]
[null,null,null,null,null,null,null,null,null,null,null,null,null,null,null,null,"부처명_전문기관명"]
[null,"부가가치세 과세여부",null,null,null,null,null,null,null,null,null,null,null,null,null,null,"※ 면세 사유 : (                                     )"]
[null,"간접비 비율",null,null,null,null,null,null,null,null,null,null,null,null,null,null,null,null,null,"%",null,null,null,"(※사유:         )"]
["학술연구용역","관련기관",null,null,null,null,null,null,null,null,null,null,null,null,null,null,"부처명_전문기관명"]
[null,null,null,null,null,null,null,null,null,null,null,null,null,null,null,null,"기업명"]
[null,null,null,null,null,null,null,null,null,null,null,null,null,null,null,null,"부처명_전문기관명"]
[null,"부가가치세 과세여부",null,null,null,null,null,null,null,null,null,null,null,null,null,null,"※ 면세 사유 : (                                     )"]
[null,"간접비 비율",null,null,null,null,null,null,"         ",null,null,null,null,null,null,null,null,null,"%"]
["공통기재사항","과제신청형태",null,null,null,null,null,null,null,null,null,"협약체결 사이트"]
[null,null,null,null,null,null,null,null,null,null,null,null,"(",null,null,null,null,null,null,null,null,")"]
[null,"연구과제 분류(필수)",null,null,null,null,null,null,"연구형태",null,null,null,null,"학문분야",null,null,null,"연구개발단계",null,null,null,null,"기술분류"]
[null,null,null,null,null,null,null,null,"경제사회목적",null,null,null,null,"차세대성장동력",null,null,null,null,"기술분야"]
[null,"과제신청관련 담당자",null,null,null,null,null,null,"소  속",null,null,null,null,null,null,null,null,null,"성명"]
[null,null,null,null,null,null,null,null,"주  소"]
[null,null,null,null,null,null,null,null,"연락처(전화)",null,null,null,null,null,null,null,null,null,"메일주소"]
[]
["상기와 같이 연구과제 협약 체결을 요청합니다."]
[]
["붙임","1. 협약서 초안(계약서 초안)"]
[null,"2. 최종 계획서"]
[null,"3. 협약체결 제출서류"]
[null,"4. 기타 필요서류"]
[]
["년       월        일"]
[null,null,null,null,null,null,null,null,null,"신청자:",null,"연구책임자",null,null,null,null,null,null,null,"(인)"]
[null,null,null,null,null,null,null,null,null,null,null,"수행기관장",null,null,null,null,null,null,null,"(인)"]
["부산대학교 산학협력단장 귀하"]

{"sheet":"3","index":5,"n_rows":51,"n_cols":26,"rows_kept":51,"cut":false,"hidden":false,"merged":[[8,2,8,9],[49,1,50,3],[49,4,49,5],[50,4,50,5],[42,1,42,3],[42,4,42,5],[43,1,48,1],[43,2,44,3],[43,4,43,5],[44,4,44,5],[45,2,46,3],[30,1,31,9],[34,1,35,9],[38,1,40,9],[22,1,22,4],[22,5,22,9],[21,5,21,9],[9,1,9,9],[10,1,10,9],[11,1,11,9],[51,1,51,9],[50,6,50,9],[49,6,49,9],[48,6,48,9],[47,6,47,9],[28,1,28,9],[27,1,27,9],[29,1,29,9],[41,1,41,9],[37,1,37,9],[45,4,45,5],[46,4,46,5],[47,2,48,3],[47,4,47,5],[48,4,48,5],[46,6,46,9],[45,6,45,9],[44,6,44,9],[43,6,43,9],[42,6,42,9],[2,1,2,9],[4,1,4,9],[36,1,36,9],[33,1,33,9],[32,1,32,9],[24,1,24,4],[23,1,23,4],[26,1,26,4],[26,5,26,9],[25,5,25,9],[24,5,24,9],[23,5,23,9],[15,1,15,9],[16,1,16,9],[17,1,17,9],[18,1,18,9],[21,1,21,4],[12,1,12,9],[13,1,13,9],[14,1,14,9],[3,1,3,9],[7,1,7,9],[6,1,6,9],[5,1,5,9],[3,13,3,21],[2,13,2,21],[26,13,26,21],[25,13,25,21],[24,13,24,21],[23,13,23,21],[22,13,22,21],[21,13,21,21],[20,13,20,21],[19,13,19,21],[6,13,6,21],[10,13,10,21],[9,13,9,21],[8,13,8,21],[7,13,7,21],[4,13,4,21],[5,13,5,21],[51,13,51,21],[50,13,50,21],[49,13,49,21],[48,13,48,21],[47,13,47,21],[46,13,46,21],[45,13,45,21],[12,13,12,21],[11,13,11,21],[18,13,18,21],[17,13,17,21],[16,13,16,21],[15,13,15,21],[14,13,14,21],[13,13,13,21],[38,13,38,21],[37,13,37,21],[36,13,36,21],[35,13,35,21],[34,13,34,21],[33,13,33,21],[44,13,44,21],[43,13,43,21],[42,13,42,21],[21,25,21,33],[20,25,20,33],[19,25,19,33],[18,25,18,33],[41,13,41,21],[40,13,40,21],[39,13,39,21],[29,25,29,33],[28,25,28,33],[27,25,27,33],[26,25,26,33],[25,25,25,33],[24,25,24,33],[32,13,32,21],[31,13,31,21],[30,13,30,21],[29,13,29,21],[28,13,28,21],[27,13,27,21],[33,25,33,33],[32,25,32,33],[31,25,31,33],[30,25,30,33],[40,25,51,33],[5,25,5,33],[4,25,4,33],[3,25,3,33],[2,25,2,33],[39,25,39,33],[38,25,38,33],[37,25,37,33],[36,25,36,33],[35,25,35,33],[34,25,34,33],[11,25,11,33],[10,25,10,33],[9,25,9,33],[8,25,8,33],[7,25,7,33],[6,25,6,33],[17,25,17,33],[16,25,16,33],[15,25,15,33],[14,25,14,33],[13,25,13,33],[12,25,12,33],[23,25,23,33],[22,25,22,33]]}
[]
[]
[]
[null,"연 구 계 약 서",null,null,null,null,null,null,null,null,null,null,null,"제4조 (연구개발비 관리)",null,null,null,null,null,null,null,null,null,null,null,"제11조 (계약의 변경 및 종료)"]
[null,null,null,null,null,null,null,null,null,null,null,null,null,"“을”은 “갑”으로부터 지급받은 연구개발비를 연구계획서상에 계상된 비목에 따라  성실히 관리하고 예산 변경 시에는",null,null,null,null,null,null,null,null,null,null,null,"① “갑”과 “을”은 서면 합의에 의하여 본 계약의 내용과 별첨의 연구개발 용역 계획서의 내용을 변경할 수 있다. "]
[null,"□ 발 주 자: OOOO 대표이사 OOO",null,null,null,null,null,null,null,null,null,null,null," “갑”의 승인 없이 “을”의 내부규정과 지침에 의거하여 처리한다. ",null,null,null,null,null,null,null,null,null,null,null,"② 본 계약은 “갑”과 “을” 양 당사자 간의 협의에 따른 서면 합의에 의해서 파기될 수 있다. "]
[null,"□ 개 발 자: 부산대학교 산학협력단",null,null,null,null,null,null,null,null,null,null,null," "]
[null,"□ 연구책임자: OO대학 OO학과 교수 OOO",null,null,null,null,null,null,null,null,null,null,null,"제5조 (연구개발 결과 보고 관련)",null,null,null,null,null,null,null,null,null,null,null,"제12조 (계약의 해지)"]
[null,"□ 계 약 명: ",null,null,null,null,null,null,null,null,null,null,null,"① “갑”은 “을”과 사전협의하여 정규 근무시간 중에 연구개발 업무 수행에 필요한  “을”의 시설과 자료를 조사할 수 있다.",null,null,null,null,null,null,null,null,null,null,null,"① 어느 일방이 상대방의 사전 서면동의 없이 상대방으로부터 제공받은 “비밀정보”를 제3자에게 공개, 제공 혹은"]
[null,"□ 개발기간: 20 년 월 일 ~ 20 년 월 일",null,null,null,null,null,null,null,null,null,null,null,"② “을”은 \"갑\"이 관련 연구기록과 자료에 접근할 수 있도록 협조하여야 한다.",null,null,null,null,null,null,null,null,null,null,null,"누설하여정보제공자에게 손해가 발생하여 상대방에게 손해를 끼친 경우에는  그 손해를 배상하여야 한다."]
[null,"□ 대금 지급 방법: 현금 결제 ",null,null,null,null,null,null,null,null,null,null,null,"③ “을”은 본 연구개발에 관한 중간보고서를 소정의 양식에 따라 “갑”과 협의하여 제출하며, 연구보고서 제출 일자는",null,null,null,null,null,null,null,null,null,null,null,"② “갑”과 “을”은 상대방이 본 계약상의 의무를 위반한 경우 30일의 예고 기간을 거쳐 서면에 의한 사전 통보로써"]
[null,"□ 대금 지급 시기:",null,null,null,null,null,null,null,null,null,null,null,"    양 당사자 간의 합의에 의하여 조정한다. 최종 결과보고서는 연구개발 기간 종료 후 1개월 이내에 연구 결과에 대한 ",null,null,null,null,null,null,null,null,null,null,null,"시정을 요구 할 수 있다."]
[null,"  1) 1차:             원(부가세 별도) (계약체결일로부터 20일 이내)",null,null,null,null,null,null,null,null,null,null,null,"    최종보고서 3부를 “갑”에게 제출하는 것을 원칙으로 한다. ",null,null,null,null,null,null,null,null,null,null,null,"③ 상기 항에 따라 상대방의 계약위반 사항이 시정되지 아니하거나 의무위반의 내용이 치유될 수 없는 경우,"]
[null,null,null,null,null,null,null,null,null,null,null,null,null,"④ 연구보고서에 대한 발표회 개최 여부 및 세부 내용은 “갑”과 “을”의 협의로 정한다. ",null,null,null,null,null,null,null,null,null,null,null,"“갑”과 “을” 쌍방은 서면에 의한 통보로써 계약을 해지할 수 있다. 다만, 상대방이 예고 기간 내에 당해 의무를 이행한"]
[null,null,null,null,null,null,null,null,null,null,null,null,null,"⑤ 양 당사자간의 합의에 의해 기한을 조정할 수 있으며, 기한 조정 시에 \"을\"은   연구가 완료된 후 1개월 이내에 ",null,null,null,null,null,null,null,null,null,null,null,"경우에는 그 해지권은 소멸된다."]
[null,"별 첨 : 연구개발과제 계획서(필요시)",null,null,null,null,null,null,null,null,null,null,null,"연구개발 결과에 관한 최종 보고서를 \"갑\"에게 제출하여야 한다.  또한, \"갑\"의 요청이 있을 때에는 진행 경과 보고서를 ",null,null,null,null,null,null,null,null,null,null,null,"④ “갑”과 “을”은 상대방이 파산, 회사정리, 화의를 신청하거나 이와 유사한 사유가 발생하여 정상적인 영업을 기대하기 "]
[null,null,null,null,null,null,null,null,null,null,null,null,null,"제출하여야 한다.",null,null,null,null,null,null,null,null,null,null,null,"곤란한 경우 30일의 기간을 두고 상대방에 대한 통지로써 계약을 해지할 수 있다."]
[null,null,null,null,null,null,null,null,null,null,null,null,null,null,null,null,null,null,null,null,null,null,null,null,null,"⑤ 상기 항에 의하여 해약할 경우에 “을”은 해지된 날로부터 1개월 이내에 해지 시까지  연구개발비 집행 정산서를"]
[null,"     년     월     일",null,null,null,null,null,null,null,null,null,null,null,"제6조 (연구결과물의 귀속)",null,null,null,null,null,null,null,null,null,null,null," \"갑\"에게 제출하고 집행 정산서에 의하여 연구비를 정산한다."]
[null,"  ",null,null,null,null,null,null,null,null,null,null,null,"본 연구결과로 발생하는 연구기자재, 연구시설 및 시작품 등은 “을”의 소유로 한다."]
[null,null,null,null,null,null,null,null,null,null,null,null,null,null,null,null,null,null,null,null,null,null,null,null,null,"제13조 (신의성실 및 상호 협조)"]
[null,"\"갑\"",null,null,null,"\"을\"",null,null,null,null,null,null,null,"제7조 (특허의 귀속 등)",null,null,null,null,null,null,null,null,null,null,null,"① “갑”과 \"을\"은 신의를 가지고 본 계약의 내용을 성실히 이행 하여야 한다."]
[null,"주소 :",null,null,null,"주소: 부산시 금정구 부산대학로63번길 2(장전동)",null,null,null,null,null,null,null,"① 본 연구개발 과제의 수행 중에 “갑”또는 “을”의 연구원이 단독으로 구상하여 특허출원한 발명은 “갑” 또는 “을”의 ",null,null,null,null,null,null,null,null,null,null,null,"② \"을\"은 전 연구과정을 통하여 “갑”의 요청이 있을 때는 수시로 연구내용에 관하여 \"갑\"과 협의하여야 하며,"]
[null,null,null,null,null,null,null,null,null,null,null,null,null,"단독 소유로 하고 “갑”과 “을”이 공동으로 구상하여 특허출원한 발명은 “갑”과 “을”이 공동으로 소유한다. ",null,null,null,null,null,null,null,null,null,null,null,"“갑”은 필요한 사항을 \"을\"에 적극 협조하여야 한다. 또한 본 계약에 명기되지 아니한 사항 및  본 계약의 해석상"]
[null,"상호 :",null,null,null,"기관명 : 부산대학교 산학협력단",null,null,null,null,null,null,null,"② ①항의 “갑”은 “을”이 단독으로 소유한 특허 등에 대해 최우선적으로 실시할 수 있는 권리를 가지며",null,null,null,null,null,null,null,null,null,null,null," 이의가 있을 때에는 양 당사자의 별도 협의를 통하여 결정한다."]
[null,null,null,null,null,null,null,null,null,null,null,null,null," “갑”과 “을”이 공동으로 개발한 특허의 권리관계는 특허법의 규정을 따른다. 단독소유 또는 공동소유 기술의 실시에 따른",null,null,null,null,null,null,null,null,null,null,null,"③ 본 연구개발이 종료된 후, “갑”의 요청이 있을 경우 \"을\"은 별도의 계약에 의하여 추가 연구개발을 진행하거나"]
[null,"대표: 대표이사                         (인)",null,null,null,"대표 : 산학협력단장 ○ ○ ○   (인)",null,null,null,null,null,null,null," 로열티의 계산과 라이선스(License) 계약조건, 연구결과의 활용에 따른 이익분배 또는 예상외 매출이익의 배분 등에",null,null,null,null,null,null,null,null,null,null,null," 연구기간 연장에 동의하여야 한다."]
[null,null,null,null,null,null,null,null,null,null,null,null,null,"배분 등에 관하여는 “갑”과 “을”의 상호 신의에 따라 별도의 계약을 체결하다. "]
[null,null,null,null,null,null,null,null,null,null,null,null,null,"③ 특허 등에 대하여 “갑”이 우선적으로 실시할 수 있는 권리를 가지는 경우에는 해당 특허의 출원, 등록 및 유지 등의 ",null,null,null,null,null,null,null,null,null,null,null,"제14조 (기타)"]
[null,"제 1 조 (목적 및 범위)",null,null,null,null,null,null,null,null,null,null,null,"비용은 “갑”이 부담한다. ",null,null,null,null,null,null,null,null,null,null,null,"① 본 계약은 “갑”과 \"을\" 양 당사자가 비밀정보를 상대방에게 제공할 의무를 지우는 것은 아니다."]
[null,"본 계약은 별첨 계획서에 “OOOOOOOOOOOOOOOOOO” 연구개발을 성공적으로 달성하기 위함이며, 본 계약의 범위는 별첨 계획서에 기재된 내용에 따른다.",null,null,null,null,null,null,null,null,null,null,null,null,null,null,null,null,null,null,null,null,null,null,null,"② 본 계약은 본 계약에 다루어진 주제와 관련해서는 “갑”과 \"을\" 양 당사자간의 최종 합의를 담은 것으로 본 계약"]
[null,null,null,null,null,null,null,null,null,null,null,null,null,"제8조 (명칭 사용)",null,null,null,null,null,null,null,null,null,null,null,"체결 이전에 “갑”과 \"을\" 양 당사자간의 모든 합의는 본 계약으로 대체한다."]
[null,null,null,null,null,null,null,null,null,null,null,null,null,"“갑”은 사전 서면 승인 없이 본 연구로 취득한 정보 및 “을”이 제출한 보고서나 문서의 일부 또는 전부에 대한",null,null,null,null,null,null,null,null,null,null,null,"③ 본 계약과 관련하여 “갑”과 \"을\" 양 당사자간에 분쟁이 발생하는 경우 쌍방의 협의에 의해 우호적으로 해결하며, "]
[null,"제 2 조 (연구개발 기간)",null,null,null,null,null,null,null,null,null,null,null,"그 원본, 복제, 또는 복사물을 광고, 판매촉진, 기타 선전의 목적 및 쟁송상의 자료로 사용할 수 없으며, 또한 상기의",null,null,null,null,null,null,null,null,null,null,null,"우호적으로 해결되지 않을 경우 대한상사중재원의 중재에 의해 해결한다."]
[null,"본 계약의 연구개발 기간은 20 년 월 일부터 20 월 일 (개월)까지로 한다. 다만, 연구개발 기간은 \"갑\"과 \"을\"의 합의에 의하여 조정할 수 있다.",null,null,null,null,null,null,null,null,null,null,null,"목적으로 “을”의 명칭을 표시하거나 사용하여서는 아니 된다."]
[null,null,null,null,null,null,null,null,null,null,null,null,null,null,null,null,null,null,null,null,null,null,null,null,null,"상기 합의내용을 증명하기 위하여 본 계약서 2부를 작성하여 “갑”과 \"을\" 이 각각 "]
[null,null,null,null,null,null,null,null,null,null,null,null,null,"제9조 (비밀유지)",null,null,null,null,null,null,null,null,null,null,null,"기명날인 후 각 1부씩 보관하며, 본 계약의 효력은 기명날인한 날로부터 유효하다."]
[null,"제 3 조 (연구개발비 지급 조건) ",null,null,null,null,null,null,null,null,null,null,null,"① “갑”과 “을”은 상대방의 승인 없이는 이 연구개발 계약과 관련하여 지득한 정보를 외부에 공개 또는 제공할 수 없다.  "]
[null,"① 본 연구 개발에 소요되는 총 연구개발비는 금 원/부가세별도(₩)으로 하며,  “갑”은 별첨의 연구 계획서에 의한 “을”의 연구개발 업무 수행에 대해 연구개발비를 현금으로 지급한다.\n② 연구개발비의 지급 시기는 다음과 같고, 대금결제 지급 조건은 “갑”의 회계 및 자금관리규정에 따라 지급하도록 한다.",null,null,null,null,null,null,null,null,null,null,null,"계약과 관련된 모든 정보에 대해서는 양 당사자가 엄격히 비밀을 연구 종료 또는 해지일로부터 1년간 유지하여야 하며"]
[null,null,null,null,null,null,null,null,null,null,null,null,null,"본 계약 이외의 목적으로는 사용하지 않는다.",null,null,null,null,null,null,null,null,null,null,null,"별첨 : 연구개발 용역 연구계획서(본 계약서의 별첨, 각1부 보관용)"]
[null,null,null,null,null,null,null,null,null,null,null,null,null,"② 비밀정보를 제공받은 “갑”과 “을”은 비밀정보를 보호하기 위하여 선량한 관리자의 주의의무를 다하여야 한다. 또한 \"갑\"이",null,null,null,null,null,null,null,null,null,null,null,"  "]
[null,null,null,null,null,null,null,null,null,null,null,null,null,"요구할 경우 “갑”과 “을” 양 당사자 간의 합의로 별도의 비밀 유지 계약서 및 비밀 보안 서약서를 작성하여야 한다."]
[null,"총연구개발비",null,null,"총금액",null,"금             원(\\          ), 부가세 별도",null,null,null,null,null,null,"③ 비밀정보는 재산으로 유지되어야 하며 “갑”이 요구하는 경우, “갑”이 요구하는 방법에 따라  “을”은 “갑”에게"]
[null,"지급시기\n및\n지급금액","1차(100%)",null,"금액",null,"금             원(\\          ), 부가세 별도",null,null,null,null,null,null," “비밀정보”를 포함한 제반자료, 서류, 기타 정보를 그 사본과 함께 즉시 반환하거나  갑의 감독 하에 파기하여야 한다."]
[null,null,null,null,"지급일자",null,"계약체결일로부터 20일 이내",null,null,null,null,null,null,"④ 상기 항에 속하지 않거나 어느 일방에 속하는지 명확하지 않을 경우, “갑”의 정보 보안규정에  따라 양 당사자가 "]
[null,null,null,null,null,null,null,null,null,null,null,null,null,"별도 협의하여 결정한다."]
[]
[null,null,null,null,null,null,null,null,null,null,null,null,null,"제10조 (연구결과의 발표)"]
[null,null,null,null,null,null,null,null,null,null,null,null,null,"① 본 계약에 따라서 “을” 또는 “을”의 소속연구원들은 연구 활동결과를 자유롭게 발표할 수 있다. "]
[null,"지급계좌 및 예금주",null,null,"계좌",null,"농협중앙회, 317-2009-2010-91",null,null,null,null,null,null,"② \"갑\"은 연구결과 발표 내용에 특허 등 지식재산권으로 보호되어야 할 사항이 있다고 판단 할 경우 “을”의 합의하에 "]
[null,null,null,null,"예금주",null,"부산대학교 산학협력단",null,null,null,null,null,null," 발표내용을 제한할 수 있다."]

{"sheet":"4","index":6,"n_rows":22,"n_cols":11,"rows_kept":22,"cut":false,"hidden":false,"merged":[[15,7,15,8],[16,3,16,4],[16,5,16,6],[16,7,16,8],[21,9,21,10],[19,1,19,4],[19,5,19,6],[20,1,20,4],[20,7,20,8],[21,1,21,4],[21,5,21,8],[12,9,20,10],[18,7,18,8],[14,7,14,8],[14,5,14,6],[17,1,17,4],[17,5,17,6],[18,1,18,2],[18,3,18,4],[18,5,18,6],[12,1,16,2],[12,3,12,4],[12,5,12,6],[15,3,15,4],[15,5,15,6],[4,1,4,10],[5,2,5,3],[5,6,9,6],[5,8,5,10],[12,7,12,8],[20,5,20,6],[19,7,19,8],[7,1,8,2],[7,3,8,5],[7,8,7,10],[9,1,9,2],[9,3,9,4],[10,1,10,10],[11,1,11,4],[11,5,11,6],[11,7,11,8],[11,9,11,10],[13,3,13,4],[13,5,13,6],[13,7,13,8],[14,3,14,4]]}
[]
[]
[]
[]
[null,"견    적    서"]
[null,null,null,null,"貴下",null,"공급자","사업자 번호","621-82-06530"]
[null,null,null,null,null,null,null,"업체명","부산대학교 산학협력단","대  표","최경민"]
[null,"총   합   계    :\n(VAT포함)",null,"금                        원정\n(\\                  )",null,null,null,"주소","부산광역시 금정구 부산대학로63번길 2(장전동)"]
[null,null,null,null,null,null,null,"업태","서비스","종목","연구및기술용역"]
[null,"견적일 :",null,"2023. 00. 00.",null,null,null,"전화","051-510-77**","팩스","051-510-3731"]
[null,"프로젝트명    : \n연구개발기간 : 2023.06. ~ 2027.12. (55개월) "]
[null,"항     목",null,null,null,"금     액",null,"구  성  비",null,"비    고"]
[null,"직접비",null,"인건비",null,null,null,null,null,"\n* 견적 유효일 : ~2023.12.31"]
[null,null,null,"학생인건비"]
[null,null,null,"연구재료비"]
[null,null,null,"연구활동비"]
[null,null,null,"연구수당"]
[null,"계",null,null,null,{"$f":"SUM(F13:G17)","v":0}]
[null,"간접비",null,"연구지원비",null,null,null,"직접비 총액 x 24.81%"]
[null,"계",null,null,null,{"$f":"F19","v":0}]
[]
[null,"합    계(VAT포함)",null,null,null,{"$f":"F18+F20","v":0}]

{"sheet":"5","index":7,"n_rows":38,"n_cols":9,"rows_kept":38,"cut":false,"hidden":false,"merged":[[3,3,3,8],[6,8,7,8],[6,7,7,7],[6,6,7,6],[6,5,7,5],[6,4,7,4],[6,3,7,3],[24,3,32,8],[33,3,33,8],[17,3,17,8],[18,3,19,8],[20,3,20,8],[21,3,21,8],[22,3,22,8],[23,3,23,8]]}
[]
[]
[]
[null,"개인정보 활용 동의서",null,"개인정보 활용 동의서(별지서식)"]
[]
[null,"  산학협력단 ERP시스템 사용 및 업무 처리를 위해 「개인정보 보호법」 제15조, 제17조,",null,"소속기관","성명","직위","생년월일","과학기술인번호","정보이용동의\n(자필서명)"]
[null,"제22조 및 제24조에 따라 아래와 같이 동의를 얻고자 합니다."]
[]
[null,"개인정보 수집 및 이용에 대한 동의"]
[null,"□ 개인정보의 수집 ․이용목적: 연구정보 안내, 연구기획 등의 지원, 연구참여인력등록, 인건비 지급,"]
[null,"     소득신고, 연구과제참여확인서 발급, 통계자료 작성 등 전산시스템 사용 및 업무 처리"]
[null,"□ 수집하려는 개인정보의 항목"]
[null,"      - 성명, 주민등록번호, 주소, 전화번호, 휴대폰번호, 이메일, 소속, 국적, 계좌번호"]
[null,"      - 연구실적, 연구과제 수행실적, 산학협력활동내역 "]
[null,"□ 개인정보의 보유 및 이용기간: 준영구"]
[null,"      지원자는 「개인정보 보호법」 제15조제2항제4호에 따라 개인정보 수집 및 이용에 관하여 거부할"]
[null,"      수 있으며, 동의 거부에 따른 과제참여불가 및 인건비 미지급 등의 불이익이 있을 수 있음"]
[null,null,null,"※ 과제 참여하는 모든 연구원을 기재 및 본인이 직접 서명"]
[null,"■ 개인정보 수집․이용에 관한 동의 여부:       동의함         동의하지 않음"]
[]
[null,"개인정보 제3자 제공에 관한 사항 동의",null,"상기 연구개발 참여자는 '개인정보 수집 및 이용' , '개인정보 제3자 제공' 에 대한 내용을 읽고"]
[null,"□ 제공 받는 자: 교육부 등 상위기관, 은행",null,"명확히 이해하였으며 이에 동의합니다."]
[null,"□ 제공목적: 연구비 사용현황 조사, 인건비 등 수당 입금"]
[null,"□ 제공받는 항목: 성명, 소속, 학위, 국적, 계좌번호 등 관련 기관에 따라 요구되는 정보가 변경될 수 있음",null,"      년              월           일 "]
[null,"□ 보유기간: 준영구"]
[null,"□ 불이익에 대한 사항: 과제참여불가 및 인건비 미지급 등"]
[]
[null,"■ 개인정보의 제3자 제공에 관한 동의 여부:        동의함         동의하지 않음"]
[]
[]
[]
[]
[null,"         년              월           일 "]
[null,"                                             동의자:                          (서명)",null,"부산대학교 산학협력단장 귀하"]
[]
[]
[]
[null,"부산대학교 산학협력단장 귀하"]

{"sheet":"6","index":8,"n_rows":56,"n_cols":8,"rows_kept":56,"cut":false,"hidden":false,"merged":[[23,3,23,8],[3,1,3,9],[51,1,51,9],[53,1,53,9],[4,1,4,9],[9,1,9,9],[8,1,8,9],[5,1,7,9],[18,1,19,9],[28,1,29,9],[30,1,36,9],[12,1,12,9],[11,1,11,9],[10,1,10,9],[17,1,17,9],[16,1,16,9],[14,1,14,9],[13,1,13,9],[21,1,21,9],[20,1,20,9],[22,3,22,4],[15,1,15,9],[24,3,24,4],[37,1,45,9],[27,1,27,9],[26,1,26,9],[25,1,25,9],[24,6,24,8],[52,1,52,9],[54,1,54,9],[56,1,56,9],[46,1,50,9],[55,1,55,9]]}
[]
[]
[]
[null,"연구과제 참여 계약서"]
[]
[null," 연구과제 책임자 OOO(이하 “갑”이라 함)은 해당과제 수행에 참여하는 연구원 OOO을 “을”로 하여 상호간의 합의에 따라 아래와 같이 연구과제 참여 계약을 체결하고 이를 신의와 성실로서 준수할 것을 확약한다."]
[]
[]
[]
[null,"제1조(계약당사자)"]
[null,"① 갑 : 부산대학교 OOO학과        직급 : OOO           성명 : OOO"]
[null,"          주 소 :"]
[null,"          전화번호 :                         휴대전화번호 : "]
[]
[null,"② 을 : 성명 : OOO                      생년월일 : OOOO년 OO월 OO일"]
[null,"          주 소 :"]
[null,"          전화번호 :                         휴대전화번호 : "]
[]
[null,"제2조(직급 및 근무처) “을”의 직급은 (공동,참여,보조,기타 등)연구원으로 과제에 참여하여 연구과제를 수행한다."]
[]
[]
[null,"제3조(참여과제) “을”은 아래 과제에 참여한다."]
[null,null,"지원기관명",null,null,"연구책임자",null,"과제번호"]
[null,null,"연구과제명"]
[null,null,"연구기간",null,null,"연구비"]
[]
[null,"제4조(계약기간) “을”의 과제 참여 기간은 20 년 월 일부터 20 년 월 일까지로 한다."]
[]
[null,"제5조(“갑”의 의무) “갑”은 “을”의 인건비를 과제 참여계약 기간 내에 총 원(월 원)기준으로 (원천세 포함) 산단으로 청구하여 지급이 가능하게 하여야 한다."]
[]
[null,"제6조(“을”의 의무) ①“을”은 본 계약서 제3조 및 제4조에 정한 기간 동안 “갑”이 지정하는 연구업무에 전념하여야 한다.\n② “을”은 근무 중 직무와 관련하여 취득한 각종 비밀을 과제참여계약 중 또는 계약 종료 후에도 누설하여서는 아니 된다.\n③ “을”은 본 계약서 제3조 및 제4조에 정한 기간 동안 연구업무를 수행함으로 인하여 발생한 연구결과를 “갑”에게 귀속시켜야 한다.\n④ “을”은 연구비 집행시 지원기관의 연구비 관리지침 및 대학교의 연구와 관련된 지시사항을 준수하고 성실히 수행하여야 한다."]
[]
[]
[]
[]
[]
[]
[null,"제7조(계약해지) “을”이 다음 각 호의 1에 해당할 경우 “갑”은 과제참여계약을 해지할 수 있다.\n① 본 참여계약을 위반하는 경우\n② 질병, 실종 또는 형사소추 등으로 연구업무 수행이 불가능한 경우\n③ 연구업무를 성실히 준수하지 아니하는 경우\n④ 기타 사회적인 물의를 일으키거나 연구원으로서의 품위를 손상하여 본교의 명예를 훼손한 경우\n⑤ 연구비 지원기관으로부터 연구비 지원이 중단되거나 연구비 지원 금액의 규모가 변경된 경우 “갑”은 “을”과의 과제 참여 계약을 해지 또는 계약 내용의 일부를 변경할 수 있으며, “을”은 이에 따른다."]
[]
[]
[]
[]
[]
[]
[]
[]
[null,"제8조(기타사항)\n① 본 계약서에 명시되지 아니한 사항에 대해서는 근로기준법 등 근로관계 법령이 정하는 바에 따른다.\n② 본 계약의 체결을 증명하기 위하여 계약서 2통을 작성하여 해당과제 연구책임자(갑), 참여연구자(을)이 서명, 날인하고 각각 1통씩 보관한다."]
[]
[]
[]
[]
[null,"   년     월     일"]
[]
[null,"                               (갑)연구책임자 : 부산대학교 OOO학과        교수 OOO (인)"]
[]
[null,"                               (을)참여연구자 :    OOO (인)"]

{"sheet":"7","index":9,"n_rows":33,"n_cols":15,"rows_kept":33,"cut":false,"hidden":false,"merged":[[11,1,11,5],[3,7,3,14],[7,1,7,2],[8,1,8,2],[9,1,9,2],[10,1,10,2],[7,7,10,7],[6,4,6,5],[7,3,7,5],[4,7,4,14],[3,1,3,5],[4,1,4,5],[5,1,5,5],[6,1,6,2],[32,1,32,5],[12,1,12,3],[18,3,18,5],[17,3,17,5],[16,3,16,5],[15,3,15,5],[14,3,14,5],[25,1,25,5],[21,1,21,5],[22,1,24,5],[30,1,30,5],[31,1,31,5],[14,1,19,1],[26,1,26,5],[28,1,28,5],[13,1,13,5]]}
[]
[]
[]
[null,"외부참여연구자 기관장 확인서",null,null,null,null,null,"국가연구개발사업 과제 참여 현황"]
[]
[null,null,null,null,null,null,null,"과제 수행기관","지원기관","연구책임자","과제명","연구기간","참여기간","월 인건비(원)","인건비계상률(%)"]
[null,"□ 연구원 인적 사항",null,null," [연구원 본소속 기관 작성]",null,null,"부산대학교"]
[null,"성 명",null,null,null,null,null,"본 소속 기관"]
[null,"생년월일",null,null,"소속(대학)"]
[null,"과학기술인번호",null,null,"학과 및 직급\n(학위과정명)"]
[null,"연락처",null,null,"이메일"]
[]
[null,"□ 부산대 연구과제 참여 현황",null,null,null," [부산대 작성]"]
[]
[null,"과제정보","지원기관(부처명)"]
[null,null,"사업명"]
[null,null,"총괄(연구)책임자"]
[null,null,"(성명/소속)"]
[null,null,"연구과제명"]
[null,null,"연구기간",null,"연구비(원)"]
[null,"연구원\n 참여정보","인건비계상률(%)",null,"월급여(원)"]
[]
[null,"상기 연구과제에 우리 대학의 학생(연구원)이 참여함을 확인하며, 해당 학생(연구원)이 국가연구개발사업 과제(상기 과제 포함)에 참여하여 지급받는 인건비가 본인 직급 기준 인건비의 100%를 초과하지 않음을 확인합니다."]
[]
[]
[]
[null,"년       월       일"]
[]
[null,"                                                    소속기관장                           (인)"]
[]
[null,"부산대학교 산학협력단장 귀하"]
[]
[null,"※ 사업별 별도 양식을 사용하는 경우는 해당 사업에서 배포하는 양식 사용하여야 함"]

{"sheet":"8","index":10,"n_rows":41,"n_cols":77,"rows_kept":41,"cut":false,"hidden":false,"merged":[[18,15,19,15],[18,19,19,20],[20,19,21,20],[22,19,23,20],[18,16,19,16],[18,17,19,17],[18,18,19,18],[22,18,23,18],[22,17,23,17],[22,16,23,16],[22,15,23,15],[20,18,21,18],[20,17,21,17],[20,16,21,16],[20,15,21,15],[33,15,33,20],[4,23,6,23],[8,16,9,20],[30,15,30,20],[30,23,30,28],[28,23,29,28],[30,31,30,37],[28,40,28,46],[32,15,32,20],[32,23,32,28],[17,23,18,28],[10,18,11,18],[31,15,31,20],[13,27,14,28],[12,15,13,15],[12,16,13,16],[15,24,16,28],[10,19,11,20],[10,16,11,17],[31,23,31,28],[33,23,33,28],[4,31,6,37],[7,32,7,37],[9,32,9,37],[21,23,26,28],[25,32,25,37],[24,32,24,37],[27,23,27,28],[26,15,26,20],[28,15,29,20],[29,40,29,46],[29,49,29,55],[23,41,24,46],[20,41,21,46],[17,41,18,46],[30,40,30,46],[18,59,19,64],[17,59,17,64],[28,67,28,72],[25,67,25,72],[27,15,27,20],[26,59,26,64],[25,59,25,64],[18,32,19,37],[16,15,17,15],[16,16,17,16],[16,17,17,17],[16,18,17,18],[16,19,17,20],[26,50,26,55],[25,50,25,55],[26,41,26,46],[22,41,22,46],[19,41,19,46],[30,67,30,72],[24,15,25,20],[19,23,19,28],[20,23,20,28],[15,32,16,37],[12,32,13,37],[9,50,9,55],[8,72,10,72],[8,71,10,71],[8,70,10,70],[8,69,10,69],[8,68,10,68],[8,67,10,67],[14,67,14,72],[11,71,13,71],[9,59,9,64],[11,59,11,64],[10,59,10,64],[14,59,14,64],[11,67,13,67],[15,59,16,64],[12,59,13,64],[11,72,13,72],[11,68,13,68],[16,41,16,46],[3,67,3,72],[5,68,6,68],[5,67,6,67],[4,58,6,64],[5,77,5,80],[4,75,4,80],[3,75,3,80],[4,15,5,15],[4,16,5,20],[4,40,4,46],[3,23,3,28],[5,75,6,75],[6,77,6,80],[5,72,6,72],[5,71,6,71],[5,70,6,70],[5,69,6,69],[3,15,3,20],[3,31,3,37],[3,40,3,46],[3,49,3,55],[6,16,7,20],[6,15,7,15],[4,67,4,72],[14,18,15,18],[14,19,15,20],[15,23,16,23],[14,15,15,15],[14,16,15,16],[8,15,9,15],[7,24,8,28],[9,23,10,23],[7,23,8,23],[10,15,11,15],[3,58,3,64],[12,17,13,17],[12,18,13,18],[12,19,13,20],[13,23,14,23],[11,23,12,23],[11,24,12,25],[4,24,6,28],[4,49,6,55],[7,53,7,54],[11,26,12,26],[11,27,12,28],[13,24,14,25],[13,26,14,26],[9,24,10,28],[8,50,8,55],[10,50,11,55],[7,62,7,64],[8,59,8,64],[13,41,13,46],[14,41,15,46],[11,41,12,46],[12,50,13,55],[14,17,15,17],[40,31,40,37],[5,40,5,46],[6,44,6,45],[7,41,7,46],[8,41,8,46],[9,41,10,46],[25,41,25,46],[14,32,14,37],[27,31,27,37],[28,31,28,37],[29,31,29,37],[23,32,23,37],[20,32,20,37],[17,32,17,37],[38,31,39,37],[38,40,39,46],[31,40,31,46],[40,40,40,46],[27,41,27,46],[8,32,8,37],[10,32,11,37],[26,32,26,37],[21,32,22,37],[31,31,31,37],[38,49,39,55],[30,49,30,55],[27,49,27,55],[28,49,28,55],[24,59,24,64],[31,49,31,55],[40,49,40,55],[14,50,14,55],[24,50,24,55],[23,50,23,55],[20,50,20,55],[38,58,39,64],[40,58,40,64],[31,58,31,64],[30,58,30,64],[29,58,29,64],[28,58,28,64],[27,58,27,64],[23,59,23,64],[20,59,20,64],[21,50,22,55],[18,50,19,55],[15,50,16,55],[21,59,22,64],[17,75,18,80],[19,75,20,80],[7,75,7,80],[8,75,14,80],[23,75,23,80],[15,75,15,80],[24,75,31,80],[24,68,24,72],[23,68,23,72],[26,67,26,72],[27,67,27,72],[29,67,29,72],[31,67,31,72],[18,68,18,72],[19,68,19,72],[15,68,15,72],[22,68,22,72],[21,68,21,72],[20,68,20,72],[17,68,17,72],[16,68,16,72],[11,69,13,69],[11,70,13,70],[16,75,16,80]]}
[]
[]
[]
[null,null,null,null,null,null,null,null,null,null,null,null,null,null,null,"검    수    조    서(물품용)",null,null,null,null,null,null,null,"검    수    조    서(공사.용역.임차)",null,null,null,null,null,null,null,"승    낙    사    항(물품.도서용)",null,null,null,null,null,null,null,null,"승    낙    사    항(공사용)",null,null,null,null,null,null,null,null,"승    낙    사    항(용역용)",null,null,null,null,null,null,null,null,"승    낙    사    항(임차용)",null,null,null,null,null,null,null,null,"국  문  규  격  서\nCommodity Description",null,null,null,null,null,null,null,"소모품  용 도 설 명 서"]
[null,null,null,null,null,null,null,null,null,null,null,null,null,null,null,"계  약  건  명",null,null,null,null,null,null,null,"계약건명(공사명)"]
[null,null,null,null,null,null,null,null,null,null,null,null,null,null,null,null,null,null,null,null,null,null,null,null,null,null,null,null,null,null,null,null,null,null,null,null,null,null,null,null,null,null,null,null,null,null,null,null,null,null,null,null,null,null,null,null,null,null,null,null,null,null,null,null,null,null,null,"관       세\n분류번호","정부물품\n분류번호/식별번호","품목번호","품명 및 규격서","단    위","수   량",null,null,"1. 품명","영문법"]
[null,null,null,null,null,null,null,null,null,null,null,null,null,null,null,"계 약 상 대 자",null,null,null,null,null,null,null,null,null,null,null,null,null,null,null,null,null,null,null,null,null,null,null,null,null,"O 계약명:",null,null,"※ 첨부된 과업지시서 참조",null,null,null,null,null,null,null,null,null,null,null,null,null,null,null,null,null,null,null,null,null,null,null,null,null,null,null,null,null,null,null,"국문법"]
[null,null,null,null,null,null,null,null,null,null,null,null,null,null,null,null,null,null,null,null,null,null,null,"계 약 상 대 자",null,null,null,null,null,null,null,null,"O 계약명:                                                                         ※ 첨부된 견적서 참조             ",null,null,null,null,null,null,null,null,null,null,null,null,null,null,null,null,null,"O 계약명:",null,null," ※ 첨부된 과업지시서 참조",null,null,null,null,null,"O 계약명:",null,null,"※ 첨부된 규격서 또는 과업지시서 참조",null,null,null,null,"HSK No.","GPCN No.","Irem No.","Description","Unit","Q'ty",null,null,"2. 규격(성능 및 특성)"]
[null,null,null,null,null,null,null,null,null,null,null,null,null,null,null,"계  약  금  액","  일금                           원정(\\              원)",null,null,null,null,null,null,null,null,null,null,null,null,null,null,null,null,null,null,null,null,null,null,null,null,"O 계약금액: 금                                  원정(\\                          원)(VAT포함)"]
[null,null,null,null,null,null,null,null,null,null,null,null,null,null,null,null,null,null,null,null,null,null,null,"계  약  금  액","  일금                           원정(\\              원)",null,null,null,null,null,null,null,"O 계약금액: 금                                  원정(\\                          원)(VAT포함)",null,null,null,null,null,null,null,null,null,null,null,null,null,null,null,null,null,"O 계약금액: 금                                  원정(\\                          원)(VAT포함)",null,null,null,null,null,null,null,null,"O 계약금액: 금                                  원정(\\                          원)(VAT포함)"]
[null,null,null,null,null,null,null,null,null,null,null,null,null,null,null,"계  약  일  자","20      년      월      일",null,"납품일자","20      년      월      일"]
[null,null,null,null,null,null,null,null,null,null,null,null,null,null,null,null,null,null,null,null,null,null,null,"계 약 년 월 일","      년      월      일",null,"착공(착수)년월일","      년      월      일",null,null,null,null,null,null,null,null,null,null,null,null,null,"1. 규격서, 시방서 및 설계 도면 등 계약내용에 따라   년   월   일 착공(수)하고    년   월   일까지 준공(납품)하여야 한다.    "]
[null,null,null,null,null,null,null,null,null,null,null,null,null,null,null,"품     명"," 규  격","수량","단가","금  액",null,null,null,null,null,null,null,null,null,null,null,null,"1. 년   월   일까지 지정한 장소에 견적한 물품을 납품 및 설치하여야 하며, 납품된 물품 중 검사에 불합격한 물품이 있을 때에는 지정기일까지 교환하여야 한다.",null,null,null,null,null,null,null,null,null,null,null,null,null,null,null,null,null,"1. 과업지시서에 따라    년   월   일까지 용역을 시작하고   년   월   일까지 완료하여야 한다.",null,null,null,null,null,null,null,null,"1. 규격서 또는 과업지시서에 따라   년    월   일에서    년   월   일까지 지정한 장소에 용역(물품)을 제공하여야 한다."]
[null,null,null,null,null,null,null,null,null,null,null,null,null,null,null,null,null,null,null,null,null,null,null,"준공(완료)년월일","      년      월      일",null,"검사(수)년월일","      년      월      일"]
[null,null,null,null,null,null,null,null,null,null,null,null,null,null,null,null,null,null,null,null,null,null,null,null,null,null,null,null,null,null,null,null,null,null,null,null,null,null,null,null,null,"2. 준공(납품)기한까지 공사(납품)을 완료하지 못하면 그 지연일수 1일에 대하여 계약금액의 1천분의 (  )에 해당하는 지체상금을 납부하여야 한다."]
[null,null,null,null,null,null,null,null,null,null,null,null,null,null,null,null,null,null,null,null,null,null,null,"비             고",null,null,null,null,null,null,null,null,"2. 기한 내에 납품을 완납(수리를 완료)하지 못한때에는 그 지연일수 1일에 대하여 납품되지 아니한 물품 대가의 1천분의 (  )에 해당하는 지체상금을 납부하여야 한다.",null,null,null,null,null,null,null,null,null,null,null,null,null,null,null,null,null,"2. 요구한 용역 내용에 맞추어 완료하지 못하면 그 지연일수 1일에 대하여 계약금액의 1천분의(  )에 해당하는 지체상금을 납부하여야 한다.",null,null,null,null,null,null,null,null,"2. 천재 기타 불가항력으로 인한 이유가 없이 예정 기일 내에 용역을 제공하지 못하면 그 지연일수 1일에 대하여 계약금액의 1천분의 (  )에 해당하는 지체상금을 납부하여야 한다.",null,null,null,null,null,null,null,"A. 특  징:",null,null,null,null,null,null,null,"3. 용도"]
[null,null,null,null,null,null,null,null,null,null,null,null,null,null,null,null,null,null,null,null,null,null,null,null,null,null,null,null,null,null,null,null,null,null,null,null,null,null,null,null,null,null,null,null,null,null,null,null,null,null,null,null,null,null,null,null,null,null,null,null,null,null,null,null,null,null,null,null,null,null,null,null,null,null,null,"상세하게 작성"]
[null,null,null,null,null,null,null,null,null,null,null,null,null,null,null,null,null,null,null,null,null,null,null,null,null,null,null,null,null,null,null,null,null,null,null,null,null,null,null,null,null,"3. 이 공사는 정부입찰·계약 집행기준과 공사계약일반조건에 따라 국민연금, 건강보험료를 사후 정산한다.",null,null,null,null,null,null,null,null,null,null,null,null,null,null,null,null,null,null,null,null,null,null,null,null,null,null,null,null,null,null,null,null,null,"ex) 해당 소모품은 최대 1GS/s속도로 두개의 아날로그 입력을 샘플링할 수 있는 12비트 파형 디지타이저 보드로 RF 신호를 기록하기 위해 사용)"]
[null,null,null,null,null,null,null,null,null,null,null,null,null,null,null,null,null,null,null,null,null,null,null,null,null,null,null,null,null,null,null,null,"3. 제3호에 의하여 계약을 해제한 때에는 손해배상으로서 계약이 해제된 물품대가의 100분의 10에 해당하는 금액을 납부하여야 한다.",null,null,null,null,null,null,null,null,null,null,null,null,null,null,null,null,null,"3. 행사일정이 도래하였으나 정당한 사유 없이 진행하지 못하거나 과업지시서 등과 다르게 진행할 경우 그 계약을 해제할 수 있다.",null,null,null,null,null,null,null,null,"3. 제공 일정이 도래하였으나 정당한 사유 없이 진행하지 못하거나 과업지시서 등과 다르게 진행할 경우 그 계약을 해제할 수 있다.",null,null,null,null,null,null,null,"B. 규  격:"]
[null,null,null,null,null,null,null,null,null,null,null,null,null,null,null,null,null,null,null,null,null,null,null,"위 공사(계약 건)에 대하여       년        월       일 검사(수)한 결과",null,null,null,null,null,null,null,null,null,null,null,null,null,null,null,null,null,null,null,null,null,null,null,null,null,null,null,null,null,null,null,null,null,null,null,null,null,null,null,null,null,null,null,"   모델명: ",null,null,null,null,null,null,null,"ex) ~~상의 유도 효과를 검증하기 위한 ~~ 실험에 사용 / ~을 발현하여 ~~~를 촉진하는 효과가 있음 / ~~의 함유 농도에 따른 ~~~촉진 효과를 검증하기 위해 사용"]
[null,null,null,null,null,null,null,null,null,null,null,null,null,null,null,null,null,null,null,null,null,null,null,"설계도서와 계약서대로(계약서대로) 어김없이 준공(이행)하였음을 확인함.",null,null,null,null,null,null,null,null,null,null,null,null,null,null,null,null,null,"4. 준공(납품)가한 경과 후 정당한 사유 없이 30일까지 준공하지 못하거나 규격서, 시방서, 설계도면 등과 다르게 시공하거나 개발할 경우 그 계약을 해제할 수 있다."]
[null,null,null,null,null,null,null,null,null,null,null,null,null,null,null,null,null,null,null,null,null,null,null,null,null,null,null,null,null,null,null,null,"4. 제3호에 의하여 계약해제한 때에는 손해배상으로서 계약이 해제된 물품 대가의 100분의 10에 해당하는 금액을 납부하여야 한다.",null,null,null,null,null,null,null,null,null,null,null,null,null,null,null,null,null,"4. 제3호에 의하여 계약을 해제한 때에는 손해배상으로서 계약금액의 100분의 10에 해당하는 금액을 납부하여야 한다.",null,null,null,null,null,null,null,null,"4. 제3호에 의하여 계약을 해제한 때에는 손해배상으로서 계약금액의 100분의 10에 해당하는 금액을 납부하여야 한다."]
[null,null,null,null,null,null,null,null,null,null,null,null,null,null,null,null,null,null,null,null,null,null,null,null,null,null,null,null,null,null,null,null,null,null,null,null,null,null,null,null,null,null,null,null,null,null,null,null,null,null,null,null,null,null,null,null,null,null,null,null,null,null,null,null,null,null,null,"C. 참  고:"]
[null,null,null,null,null,null,null,null,null,null,null,null,null,null,null,null,null,null,null,null,null,null,null,null,null,null,null,null,null,null,null,null,null,null,null,null,null,null,null,null,null,"5. 제4호에 의하여 계약을 해제한 때에는 손해배상으로서 계약이 해제된 물품 대가의 100분의 10에 해당하는 금액을 납부하여야 한다.",null,null,null,null,null,null,null,null,null,null,null,null,null,null,null,null,null,null,null,null,null,null,null,null,null,null,null,null,null,null,null,null,null,"4. 기타"]
[null,null,null,null,null,null,null,null,null,null,null,null,null,null,null,"위 물품을 정히 검사 · 검수함",null,null,null,null,null,null,null,null,null,null,null,null,null,null,null,null,"5. 제2호 및 제4호에 따라 납부하여야 할 금액은 물품 대금과 상계할 수 있다.",null,null,null,null,null,null,null,null,null,null,null,null,null,null,null,null,null,"5. 용역에 관한 일반적인 사항은 용역계약일반조건(기획재정부 계약예규)에 따른다.",null,null,null,null,null,null,null,null,"5. 용역에 관한 일반적인 사항은 용역계약일반조건(기획재정부 계약예규)에 따른다."]
[]
[null,null,null,null,null,null,null,null,null,null,null,null,null,null,null,null,null,null,null,null,null,null,null,null,null,null,null,null,null,null,null,null,null,null,null,null,null,null,null,null,null,"5. 용역에 관한 일반적인 사항은 공사계약일반조건(기획재정부 계약예규)에 따른다."]
[null,null,null,null,null,null,null,null,null,null,null,null,null,null,null,"      년        월       일",null,null,null,null,null,null,null,"      년       월       일"]
[null,null,null,null,null,null,null,null,null,null,null,null,null,null,null,null,null,null,null,null,null,null,null,null,null,null,null,null,null,null,null,"물품을 공급함에 있어서 위의 사항을 승낙합니다.",null,null,null,null,null,null,null,null,null,null,null,null,null,null,null,null,null,"위의 사항을 승낙합니다.",null,null,null,null,null,null,null,null,"위의 사항을 승낙합니다."]
[null,null,null,null,null,null,null,null,null,null,null,null,null,null,null,null,null,null,null,null,null,null,null,null,null,null,null,null,null,null,null,null,null,null,null,null,null,null,null,null,"위의 사항을 승낙합니다."]
[null,null,null,null,null,null,null,null,null,null,null,null,null,null,null,"검  수  자 : 소속              직급             성명            (인)",null,null,null,null,null,null,null,"검  수  자 : 소속              직급             성명            (인)",null,null,null,null,null,null,null,"      년       월       일",null,null,null,null,null,null,null,null,"      년       월       일",null,null,null,null,null,null,null,null,"      년       월       일",null,null,null,null,null,null,null,null,"     년       월       일"]
[]
[null,null,null,null,null,null,null,null,null,null,null,null,null,null,null,"검  사  자 : 소속              직급             성명            (인)",null,null,null,null,null,null,null,"검  사  자 : 소속              직급             성명            (인)",null,null,null,null,null,null,null,null,"계약대상자          ","상호",":",null,null,null,null,null,null,"계약대상자          ","상호",":",null,null,null,null,null,null,"계약대상자          ","상호",":",null,null,null,null,null,null,"계약대상자          ","상호",":"]
[null,null,null,null,null,null,null,null,null,null,null,null,null,null,null,null,null,null,null,null,null,null,null,null,null,null,null,null,null,null,null,null,null,"성명",":",null,"(인)",null,null,null,null,null,"성명",":",null,"(인)",null,null,null,null,null,"성명",":",null,"(인)",null,null,null,null,null,"성명",":",null,"(인)"]
[null,null,null,null,null,null,null,null,null,null,null,null,null,null,null,null,null,null,null,null,null,null,null,null,null,null,null,null,null,null,null,null,null,"사업자등록번호",":",null,null,null,null,null,null,null,"사업자등록번호",":",null,null,null,null,null,null,null,"사업자등록번호",":",null,null,null,null,null,null,null,"사업자등록번호",":"]
[null,null,null,null,null,null,null,null,null,null,null,null,null,null,null,null,null,null,null,null,null,null,null,null,null,null,null,null,null,null,null,null,null,"주소",":",null,null,null,null,null,null,null,"주소",":",null,null,null,null,null,null,null,"주소",":",null,null,null,null,null,null,null,"주소",":"]
[null,null,null,null,null,null,null,null,null,null,null,null,null,null,null,null,null,null,null,null,null,null,null,null,null,null,null,null,null,null,null,null,null,"전화번호",":",null,null,null,null,null,null,null,"전화번호",":",null,null,null,null,null,null,null,"전화번호",":",null,null,null,null,null,null,null,"전화번호",":"]
[null,null,null,null,null,null,null,null,null,null,null,null,null,null,null,null,null,null,null,null,null,null,null,null,null,null,null,null,null,null,null,null,null,"계좌번호",":",null,null,null,null,null,null,null,"계좌번호",":",null,null,null,null,null,null,null,"계좌번호",":",null,null,null,null,null,null,null,"계좌번호",":"]
[null,null,null,null,null,null,null,null,null,null,null,null,null,null,null,null,null,null,null,null,null,null,null,null,null,null,null,null,null,null,null,"수입인지 부착 위치",null,null,null,null,null,null,null,null,"수입인지 부착 위치",null,null,null,null,null,null,null,null,"수입인지 부착 위치",null,null,null,null,null,null,null,null,"수입인지 부착 위치"]
[]
[null,null,null,null,null,null,null,null,null,null,null,null,null,null,null,null,null,null,null,null,null,null,null,null,null,null,null,null,null,null,null,"※ 제2호의 지체상금률, 용역 및 기타는 1천분의 0.75임.",null,null,null,null,null,null,null,null,"※ 제2호의 지체상금률, 공사는 1천분의 0.5임.",null,null,null,null,null,null,null,null,"※ 제2호의 지체상금률, 용역 및 기타는 1천분의 1.25임.",null,null,null,null,null,null,null,null,"※ 제2호의 지체상금률, 용역 및 기타는 1천분의 1.25임."]

{"sheet":"9","index":11,"n_rows":20,"n_cols":2,"rows_kept":20,"cut":false,"hidden":false,"merged":[[20,1,20,2],[17,1,17,2],[19,1,19,2],[3,1,3,2],[4,1,4,2],[5,1,5,2],[6,1,6,2],[14,1,16,2],[18,1,18,2]]}
[]
[]
[]
[null,"회 의 계 획 서"]
[]
[null,"아래와 같이 회의를 개최하고자 합니다."]
[]
[null,"       1. 회 의 명"]
[null,"       2. 개최목적"]
[null,"       3. 개최일시"]
[null,"       4. 회의장소"]
[null,"       5. 참석대상"]
[null,"       6. 소요예산"]
[null,"       7. 예산과목"]
[]
[]
[]
[null,"년           월           일"]
[]
[null,"연구책임자:                            (인)"]

{"sheet":"10","index":12,"n_rows":32,"n_cols":26,"rows_kept":32,"cut":false,"hidden":false,"merged":[[6,21,6,25],[7,21,7,25],[3,21,3,25],[5,21,5,25],[3,1,3,7],[7,2,7,7],[8,2,8,7],[9,2,9,3],[9,4,9,5],[9,6,9,7],[4,1,4,7],[5,1,5,7],[6,1,6,7],[3,17,3,19],[6,17,6,18],[7,17,7,18],[8,17,8,18],[9,17,9,18],[3,9,3,15],[5,10,5,15],[6,10,6,15],[7,10,7,11],[7,12,7,13],[7,14,7,15],[10,1,13,1],[10,3,10,7],[11,3,11,7],[18,2,18,3],[18,4,18,5],[18,6,18,7],[13,3,13,7],[12,3,12,7],[19,2,19,3],[19,4,19,5],[19,6,19,7],[20,2,20,3],[20,4,20,5],[20,6,20,7],[21,2,21,3],[21,4,21,5],[21,6,21,7],[22,2,22,3],[22,4,22,5],[22,6,22,7],[17,10,17,11],[17,12,17,13],[17,14,17,15],[22,10,22,11],[22,12,22,13],[22,14,22,15],[23,9,23,15],[20,10,20,11],[20,12,20,13],[20,14,20,15],[32,1,32,7],[4,9,4,15],[10,11,10,15],[11,11,11,15],[12,10,12,15],[13,10,13,15],[14,10,14,15],[15,9,15,15],[16,9,16,15],[25,9,26,15],[14,2,14,7],[15,2,15,7],[16,1,16,7],[17,1,17,7],[24,1,28,7],[30,1,30,7],[29,1,29,7],[31,1,31,7],[23,2,23,3],[23,4,23,5],[23,6,23,7],[8,9,11,9],[8,11,8,15],[9,11,9,15],[19,17,19,19],[32,9,32,15],[5,17,5,19],[11,17,15,19],[17,17,17,19],[10,17,10,18],[16,17,16,19],[18,17,18,19],[21,17,23,17],[21,10,21,11],[21,12,21,13],[21,14,21,15],[18,10,18,11],[18,12,18,13],[18,14,18,15],[19,10,19,11],[19,12,19,13],[19,14,19,15],[29,9,29,15],[31,9,31,15],[28,9,28,15],[30,9,30,15],[24,9,24,15],[27,9,27,15]]}
[]
[]
[]
[null,"세미나(학회, 행사 등) 개최 계획서",null,null,null,null,null,null,null,"세미나(학회, 행사 등) 정산 보고서",null,null,null,null,null,null,null,"특강료 영수증",null,null,null,"방 명 록"]
[]
[null,"아래와 같이 세미나를 개최하고자 합니다.",null,null,null,null,null,null,null,"1. 세미나 주제 및 개요"]
[null,null,null,null,null,null,null,null,null,"2. 세미나 연제",null,null,null,null,null,null,null,"     1. 연 제 명",null,null,null,"  ■ 일  시:"]
[null,"1. 세미나 목적",null,null,null,null,null,null,null,"3. 연사인적사항","소속:",null,"성명:",null,"직위:",null,null,"     2. 수 령 액",null,null,null,"  ■ 장  소: "]
[null,"2. 세미나 연제",null,null,null,null,null,null,null,"4. 세미나 일정","■ 일  시",null,null,null,null,null,null,"        가. 강 사 료",null,null,null,"NO","소속","직책","성명","서명"]
[null,"3. 연사인적사항","소속:",null,"성명:",null,"직위:",null,null,null,"■ 1일차",null,null,null,null,null,null,"        나. 여     비"]
[null,"4. 일시 및 일정별 세부계획","■ 일  시",null,null,null,null,null,null,null,"■ 2일차",null,null,null,null,null,null,"        다. 기     타"]
[null,null,"■ 1일차",null,null,null,null,null,null,null,"■ 3일차"]
[null,null,"■ 2일차",null,null,null,null,null,null,"5. 세미나 장소"]
[null,null,"■ 3일차",null,null,null,null,null,null,"6. 세미나 성과"]
[null,"5. 세미나 장소",null,null,null,null,null,null,null,"7. 세미나 참석자 명단"]
[null,"6. 참석대상 및 인원"]
[null,null,null,null,null,null,null,null,null,"8. 정산내역",null,null,null,null,null,null,null,"상기 금액을 정히 영수함"]
[null,"7. 소요경비 내역",null,null,null,null,null,null,null,"항목","예산액",null,"집행액",null,"비고"]
[null,"항목","소요액",null,"산출내역",null,"비고",null,null,"강사료",null,null,null,null,null,null,null,"영수인   성명:                            (인)"]
[null,"강사료",null,null,null,null,null,null,null,"여   비"]
[null,"여   비",null,null,null,null,null,null,null,"다과비"]
[null,"다과비",null,null,null,null,null,null,null,"숙박비",null,null,null,null,null,null,null,"3. \n연사\n인적\n사항","가.  성  명"]
[null,"숙박비",null,null,null,null,null,null,null,"간담회비",null,null,null,null,null,null,null,null,"나. 직 장 명"]
[null,"간담회비",null,null,null,null,null,null,null,null,null,null,null,null,null,null,null,null,"  다. 직  위(책)"]
[null,null,null,null,null,null,null,null,null,"붙임: 【별지 제9-1호 서식】특강료 영수증 1부"]
[]
[]
[null,null,null,null,null,null,null,null,null,"위와 같이 세미나 정산보고서를 제출합니다"]
[]
[null,"년           월           일",null,null,null,null,null,null,null,"년           월           일"]
[]
[null,"연구책임자:                            (인)",null,null,null,null,null,null,null,"연구책임자:                            (인)"]

{"sheet":"11","index":13,"n_rows":55,"n_cols":13,"rows_kept":55,"cut":false,"hidden":false,"merged":[[12,8,12,9],[13,8,13,9],[18,6,18,9],[20,2,20,3],[20,6,20,9],[17,8,17,9],[20,4,20,5],[21,1,21,9],[54,1,54,8],[3,1,3,9],[17,2,17,3],[18,2,18,3],[17,4,17,5],[17,6,17,7],[18,1,19,1],[18,4,18,5],[10,2,11,2],[10,3,11,3],[10,4,11,4],[19,2,19,9],[11,8,11,9],[10,7,10,9],[14,8,14,9],[6,2,6,9],[7,2,7,9],[8,2,8,9],[10,5,11,5],[10,6,11,6],[9,2,9,9],[51,1,51,8],[53,1,53,8],[52,1,52,8],[28,8,28,9],[24,8,24,9],[25,8,25,9],[26,8,26,9],[27,8,27,9],[32,8,33,8],[24,5,24,7],[32,2,33,2],[32,4,32,6],[32,7,33,7],[29,1,29,9],[32,9,33,9],[45,1,45,9],[55,1,55,9],[4,11,4,17],[3,11,3,17],[5,12,5,16],[6,13,6,16],[31,1,31,9],[39,1,39,9],[40,1,40,9],[41,1,43,9],[44,1,44,9],[4,1,4,9],[5,1,5,9],[15,1,15,9],[16,1,16,9],[10,1,11,1],[12,12,12,16],[46,1,46,9],[47,1,49,9],[50,1,50,9],[22,1,22,9],[25,5,25,7],[26,5,26,7],[27,5,27,7],[28,5,28,7],[32,1,33,1],[23,8,23,9],[23,5,23,7],[7,13,7,16],[8,13,8,16],[9,13,9,16],[31,12,31,16],[13,12,16,16],[17,12,17,16],[18,12,21,16],[22,12,22,16],[23,12,25,16],[26,12,26,16],[27,12,27,16],[28,12,28,16],[29,12,29,16],[30,12,30,16],[10,12,11,12],[10,13,11,16]]}
[]
[]
[]
[null,"공 무 국 외 출 장 계 획 서",null,null,null,null,null,null,null,null,null,"국외출장 결과 보고서"]
[]
[null,"1. 출장개요",null,null,null,null,null,null,null,null,null,null,"1. 방문 개요"]
[null,"출장목적",null,null,null,null,null,null,null,null,null,null,"    가. 출장목적"]
[null,"출장기간",null,null,null,null,null,null,null,null,null,null,"    나. 근거"]
[null,"출 장 국",null,null,null,null,null,null,null,null,null,null,"    다. 방문기간"]
[null,"방문기관",null,null,null,null,null,null,null,null,null,null,"    라. 방문국(도시)"]
[null,"출 장 자","소속","직급","성명","성별","연령","출장경비",null,null,null,null,"    마. 출장자"]
[null,null,null,null,null,null,null,"금액","부담기관"]
[null,null,null,null,null,null,null,null,null,null,null,null,"2. 주요 방문일정"]
[]
[]
[]
[null,"2. 외부인 동반"]
[null,"외부인 동반여부",null,null,null,null,null,null,null,null,null,null,"3. 활동내용"]
[null,"동반사유"]
[null,null,"※ 공무수행 목적 시 관련 증빙 첨부"]
[null,"경비 지출 방식"]
[]
[null,"3. 출장일정",null,null,null,null,null,null,null,null,null,null,"4. 기타 참고사항 등"]
[null,"월일(요일)","출발지","도착지","방문기관","업무수행내용\n(수집할 자료목록,질의할 내용 등)",null,null,"접촉예정인물\n(직책포함)"]
[null,null,"서울"]
[]
[]
[null,null,null,"서울",null,null,null,null,null,null,null,null,"※ 아래 내용은 학생연구자인 경우 작성"]
[null,null,null,null,null,null,null,null,null,null,null,null,"참가자(출장자)          (인)"]
[null,"※ 2인 이상이 동행하는 경우는 개인별 업무수행내용을 구체적으로 명시",null,null,null,null,null,null,null,null,null,null,"※ 참가자 전원 도장 날인"]
[null,null,null,null,null,null,null,null,null,null,null,null,"연구책임자:                            (인)"]
[null,"4. 출장경비"]
[null,"성명","계","항공운임","체 재 비",null,null,"준비금","교육비","기타"]
[null,null,null,"(등급)","일비","식비","숙박비"]
[]
[]
[]
[]
[]
[]
[null,"5. 출장효과"]
[]
[]
[]
[]
[null,"6. 외교부 협조"]
[null,"(※ 재외공관 협조여부와 그 내용을 기재)"]
[]
[]
[]
[]
[null," ※ 아래 내용은 학생연구자인 경우 작성"]
[null,"참가자(출장자)             (인)"]
[null,"※ 참가자 전원 도장 날인"]
[null,"연구책임자:                               (인)"]

{"sheet":"12","index":14,"n_rows":24,"n_cols":12,"rows_kept":24,"cut":false,"hidden":false,"merged":[[5,1,5,2],[22,4,22,7],[3,1,3,2],[3,4,3,7],[3,10,4,15],[4,1,4,2],[4,4,4,7],[24,4,24,7],[5,10,5,15],[6,10,8,15],[12,10,18,15],[19,11,19,14],[21,5,21,7],[22,10,24,15],[21,10,21,15],[17,4,17,7],[9,11,11,14],[23,4,23,7],[16,4,16,7],[18,4,20,7]]}
[]
[]
[]
[null,"논문 게재료 신청서",null,null,"부실학회 자가점검표"]
[]
[null,"논문 게재료",null,null,null,"점검사항","○/△/x","주의사항",null,null,"서 약 서"]
[null,"논문명",null,null,1,"이 학회에 대해 들어본 적이 있습니까? ",null,"만약 학회 이름을 한 번도 들어본 적이 없다면, \n등록 전에 추가적인 확인이 필요함 "]
[null,"학술지 명칭",null,null,2,"누가 이 학술대회를 주관하고 있는지 알고 있습니까? ",null,"본인이 알고 신뢰하는 전문적인 학술 또는 과학기술 단체(협회)에 의해 학회가 운영되지 않는다면 조심해야 함"]
[null,"발행국가",null,null,3,"웹사이트와 이메일 주소는 정상적으로 보입니까? ",null,"이메일이 무료계정을 사용했거나, 웹사이트 url이 무료 웹사이트이고 지난 학회에 대한 기록이 없는 경우 의심스러운 학회일 수 있음"]
[null,"SCI 여부","여                        부",null,4,"본인 또는 동료가 이 학회에 참석한 적이 있습니까? ",null,"본인의 동료, 은사 등이 이 학회에서 한번도 발표한 적이 없다면 참석 결정 전에 한번 더 재고 필요함 ",null,null,null,"본인은 국가연구개발비를 지원받아 참여하는 국외 학술대회가 부실학회가 아님을 자가점검하였으며, 향후 부실학회로 밝혀질 경우 그에 따른 처분을 감수할 것을 서약합니다."]
[null,"게재 연월일"," 년          월         일",null,5,"학술대회의 범위와 목적이 당신의 연구분야와 관심사에 적합합니까? ",null,"서로 관련이 없는 다양한 학문 분야, 학술 주제를 하나로 결합한 경우 확인 필요함"]
[null,"권호",null,null,6,"대회의 일정, 장소와 의제(프로그램)에 대한 정보가 \n명확히 제공되고 있습니까? ",null,"대회의 일정을 명시적으로 밝히지 않고 주요 일정이나 개최 장소가 자주 변경되는 경우 부실 학회의 가능성이 있음 "]
[null,"저자명",null,null,7,"기조 연설자가 누구인지 밝히고 있습니까? "]
[null,"사사표기",null,null,8,"논문 초록에 대한 짧은 심사기간과 학회 논문의 학술지 게재를 보장하고 있지는 않습니까? ",null,"논문 초록의 빠른 심사(4주 이내)와 학회 논문의 저널 게재를 보장하는 것은 부실학회의 주요 특징 중 하나임 "]
[null,"총 페이지 수",null,null,9,"학회가 관광명소나 리조트에서 열립니까?",null,"학회가 누구나 떠나고 싶어하는 휴가지에서 \n열리며, 학술대회가 아닌 휴가처럼 선전되는 경우, \n관광 프로그램을 홍보하는 경우 부실 가능성이 있음 "]
[null,null,null,null,10,"위와 같이 확인하였음에도 참석한 학회가 부실학회라고 판단될 경우 ‘건전학술활동지원 시스템’에 \n신고하시겠습니까? ",null,"http://safe.koar.kr → 의심신고 항목에 \n신고 필요함"]
[]
[null,null,null,null,"해외 학술대회 참가 및 이를 위한 국외출장 승인 신청을 위하여 위의 유의사항을 점검하였음을 확인합니다. "]
[]
[null,null,null,null,null,null,null,null,null,null,null,"       년        월        일"]
[]
[null,null,null,null,null,"    년        월        일",null,null,null,null,"소속:                         직급:                      이름:                    (인)"]
[]
[null,null,null,null,"소속:                            직급:                         이름:                    (인)"]

{"sheet":"13","index":15,"n_rows":36,"n_cols":14,"rows_kept":36,"cut":false,"hidden":false,"merged":[[16,4,16,5],[22,5,22,6],[19,1,20,1],[19,2,20,2],[20,5,20,6],[19,3,19,6],[21,5,21,6],[9,5,9,6],[3,1,3,6],[6,5,6,6],[7,5,7,6],[8,2,8,6],[3,8,3,13],[6,9,6,10],[6,12,6,13],[7,9,7,10],[7,12,7,13],[4,8,4,13],[5,8,5,13],[28,1,28,6],[25,5,25,6],[26,1,26,6],[23,5,23,6],[24,5,24,6],[35,1,35,6],[36,1,36,6],[4,1,5,6],[10,1,10,6],[11,1,11,6],[17,1,17,6],[18,1,18,6],[27,1,27,6],[30,1,30,6],[32,1,32,6],[6,1,7,1],[12,4,12,5],[13,4,13,5],[14,4,14,5],[15,4,15,5],[9,2,9,3],[31,1,31,6],[33,1,33,6],[34,1,34,6],[30,12,30,13],[31,8,31,13],[33,8,33,13],[32,8,32,13],[34,8,34,13],[8,9,8,13],[9,9,9,10],[9,12,9,13],[18,8,18,13],[29,1,29,6],[27,8,29,8],[27,9,29,9],[27,10,29,10],[27,12,27,13],[28,12,28,13],[29,12,29,13],[24,8,26,8],[24,9,26,9],[24,10,26,10],[24,12,24,13],[25,12,25,13],[35,8,39,13],[10,8,10,13],[11,8,11,13],[17,8,17,13],[26,12,26,13],[19,8,20,8],[19,9,20,9],[19,11,19,13],[20,12,20,13],[21,8,23,8],[21,9,23,9],[21,10,23,10],[21,12,21,13],[22,12,22,13],[23,12,23,13]]}
[]
[]
[]
[null,"연구(보안)수당 신청서",null,null,null,null,null,null,"연구수당지급 평가서"]
[]
[null,null,null,null,null,null,null,null,"1. 일반사항"]
[null,"연구책임자 ","소속",null,"지원기관",null,null,null,"지원기관",null,null,"지원사업명"]
[null,null,"성명",null,"총연구비",null,null,null,"연구책임자 소속",null,null,"연구책임자 성명"]
[null,"연구과제명",null,null,null,null,null,null,"과제명"]
[null,"연구기간",null,null,"총연구비",null,null,null,"연구기간",null,null,"총연구비"]
[]
[null,"□ 평가내역",null,null,null,null,null,null,"2. 사업추진내용에 따른 업무분장 및 기여도 분석"]
[null,"직번","성명","참여기간","평가내용",null,"비고",null,"구분(역할)","성명","평가기간","평가점수","기여도(%)","비고"]
[]
[]
[]
[null,"합계",null,null,null,null,null,null,"합계"]
[]
[null,"□ 연구수당 지급 내역",null,null,null,null,null,null,"3. 기여도에 따른 연구수당 지원금액"]
[null,"성명","지급액","계좌정보",null,null,null,null,"성명","기여도(%)","연구수당 ","평가내용"]
[null,null,null,"은행명","계좌번호","예금주",null,null,null,null,"지원금액(원)","항목","세부내용"]
[null,null,null,null,null,null,null,null,null,null,null,"SCI급 학술지논문 발표"]
[null,null,null,null,null,null,null,null,null,null,null,"특허, 기술이전"]
[null,null,null,null,null,null,null,null,null,null,null,"연구보고서"]
[]
[null,"합계"]
[null,"붙임: 【별지 제18-1호 서식】연구수당지급 평가서 1부"]
[]
[null,"위와 같이 연구수당을 지급하여 주시기 바랍니다."]
[]
[null,"년           월           일",null,null,null,null,null,null,"합계"]
[null,null,null,null,null,null,null,null,"위와 같이 연구수당 지급을 위한 평가를 수행하였습니다."]
[null,"연구책임자:                            (인)"]
[null,null,null,null,null,null,null,null,"                                                                              연구책임자:                            (인)"]
[]
[null,"부산대학교 산학협력단장 귀하",null,null,null,null,null,null,"※ 1. 국가연구개발과제는 전체 평가대상자의 평가점수 합은 100점이어야 함.\n        다만, 민간, 용역 등의 과제는 개인별 평가점수의 합은 100점을 초과하지 못함.\n    2. 평가항목은 연구책임자가 SCI급 학술지․국제학술지․등재 학술지 논문 발표, 저서, 특허, 기술이전, 산업체 기술지도, 연구성과 발표, 학회(세미나) 발표, 실험․논문․연구지도, 연구보고서 작성 중에서 선택하거나 새로운 평가항목을 추가할 수 있음.\n    3. 평가내용(기준)은 실적이나 자료를 토대로 구체적으로 나타내어야 함."]

{"sheet":"14","index":16,"n_rows":33,"n_cols":2,"rows_kept":33,"cut":false,"hidden":false,"merged":[]}
[]
[]
[]
[null,"연구비 선 집행 상세 명세서"]
[]
[]
[null,"(근거) 부산대학교 연구비 관리 세부 지침"]
[null,"제18조(연구비 선 집행) ① 관리기관은 연구기간 개시 전에 지원기관의 연구비가 입금되지 않거나 \n연구과제 종료 후 연구비가 지급되는 경우에 규정 제13조제1항에 따라 연구비를 선 집행 할 수 있다."]
[]
[null,"1. 지원요건 "]
[null,"※ 선 집행 한도액 : 위탁연구개발비, 간접비, 용역과제의 전임교원 연구수당 제외 연구비 총액"]
[null,"    연구 수행 착수와 동시에 선 집행 한도액의 50% 이내"]
[null,"    연구 수행기간 1/2 경과 후에 선 집행 한도액의 50% 이내 "]
[null,"    지원기관에서 연구비 선 정산을 요구하거나 연구기간이 6개월 미만(연구비 전액)"]
[]
[null,"2. 사용용도"]
[null,"      인건비                     학생인건비                      연구시설·장비비  "]
[null,"      연구재료비                 연구활동비 "]
[]
[null,"3. 대금상환시기 : 예) 중도금 2024년 00월 00일 입금 예정"]
[]
[null,"4. 신청사유 : 예) 중도금 입금 지연으로 인건비 지급 처리 위함"]
[]
[null,"5. 과제별 지출항목별 집행현황 자료를 첨부합니다."]
[null,"      첨부함                       첨부하지 않음                    "]
[]
[null,"6. 위와 같이 선 집행 지침을 숙지하였음을 동의합니다."]
[null,"       동의함                      동의하지 않음                    "]
[]
[null," 붙임: (ERP 서식)과제별 지출항목별 집행현황"]
[]
[]
[null,"부산대학교 산학협력단장 귀하"]

{"sheet":"Ⅰ","index":17,"n_rows":35,"n_cols":7,"rows_kept":35,"cut":false,"hidden":false,"merged":[[13,5,13,6],[22,1,22,6],[17,2,17,3],[18,2,18,3],[19,2,19,3],[17,5,17,6],[18,5,18,6],[17,1,19,1],[20,2,20,6],[21,1,21,6],[19,5,19,6],[10,1,10,6],[14,5,14,6],[5,1,6,1],[15,1,16,1],[5,2,5,3],[6,2,6,3],[16,2,16,3],[16,5,16,6],[15,2,15,3],[15,5,15,6],[11,2,11,3],[12,2,12,3],[13,2,13,3],[14,2,14,3],[11,5,11,6],[12,5,12,6],[3,1,3,6],[4,1,4,6],[7,2,7,6],[9,2,9,4],[8,2,8,4],[32,1,32,6],[34,1,34,6],[33,1,33,6],[35,1,35,6],[23,1,23,6],[24,1,24,6],[25,1,25,6],[26,1,26,6],[27,1,27,6],[30,1,30,3],[29,1,29,3],[28,1,28,3]]}
[]
[]
[]
[null,"특수관계자 연구참여 신청서"]
[null,"1. 연구과제 일반사항"]
[null,"연구책임자","성 명",null,"학 과","직 급","연락처"]
[]
[null,"연구과제명"]
[null,"지원기관",null,null,null,"사업명"]
[null,"당해연도 연구기간",null,null,null,"당해연도 연구비"]
[null,"2. 특수관계인 정보"]
[null,"성 명",null,null,"연구책임자와의 관계"]
[null,"생년월일",null,null,"소속/직급"]
[null,"인건비계상률(%)",null,null,"참여기간"]
[null,"인건비지급총액",null,null,"연락처"]
[null,"학 력","최종학위명",null,"취득일","취득기관"]
[]
[null,"경 력","기관명",null,"기간","부서/직위/직무"]
[]
[]
[null,"전공(연구)분야"]
[null,"참여사유 및 역할(주요 업무)"]
[null,"연구활용계획 및 기대효과 기재"]
[null,"  상기 특수관계인은 연구과제의 참여연구자로서 연구과제 수행에 필요한 전공지식과 자격요건을 "]
[null," 갖추고 있어, 본인의 연구과제 참여연구자로 활용하고자 신청서를 제출합니다."]
[]
[null,"   년       월       일"]
[]
[null,null,null,null,"참여연구자:",null,"(서명)"]
[null,null,null,null,"연구책임자:",null,"(서명)"]
[null,null,null,null,"소속기관장:",null,"(서명)"]
[]
[null,"붙임 1. 학위증명서 1부"]
[null,"         2. 경력증명서(해당자에 한함) 1부"]
[null,"         3. 연구실적 증빙자료(해당자에 한함) 1부 "]

{"sheet":"Ⅱ","index":18,"n_rows":29,"n_cols":6,"rows_kept":29,"cut":false,"hidden":false,"merged":[[26,1,26,5],[28,1,28,5],[29,1,29,5],[3,1,3,5],[17,1,17,5],[18,1,18,5],[19,1,19,5],[20,1,20,5],[22,1,22,5],[21,1,21,5],[23,1,23,5],[25,1,25,5],[5,2,5,5],[6,2,6,3],[7,2,7,5],[8,2,8,5],[24,1,24,5],[27,1,27,5]]}
[]
[]
[]
[null,"연구비지불확인서"]
[null,"연구책임자","소속","학과(전공)","성 명"]
[null,"연구과제명"]
[null,"지원기관",null,null,"연구기간"]
[null,"지원사업명"]
[null,"직접 지급 사유"]
[]
[null,"지출비목","지급액","지급일자","지급 대 상 자\n(상호 및 성명)","지 급 내 역"]
[]
[]
[]
[]
[]
[]
[null,"붙임 : 영수증      매"]
[]
[null,"  연구 수행 과정에서 위와 같이 부득이한 사정으로 연구비를 직접 지급하였기에 지불확인서를 제출합니다."]
[]
[]
[]
[null,"년           월           일"]
[]
[null,"연구책임자:                            (인)"]
[]
[]
[null,"부산대학교 산학협력단장 귀하"]

{"sheet":"Ⅲ","index":19,"n_rows":17,"n_cols":11,"rows_kept":17,"cut":false,"hidden":false,"merged":[[14,1,16,3],[8,1,9,1],[8,2,9,2],[8,3,9,3],[8,4,9,4],[11,1,12,1],[11,2,12,2],[11,3,12,3],[11,4,12,4],[4,1,4,10],[8,9,9,9],[8,10,9,10],[11,9,12,9],[11,10,12,10],[8,6,9,6],[11,6,12,6],[8,7,9,7],[11,7,12,7],[5,9,5,10]]}
[]
[]
[]
[]
[null,"인건비 현황표"]
[null,null,null,null,null,null,null,null,null,"(단위: 원)"]
[null,"지원기관","R&D 여부","연구책임자","연구과제명\n(연구기간)","인건비\n지급기간","월 급여(세전)\n","식대(비과세)\n포함","인건비\n계상률(%)","기관부담금\n재원확보","퇴직충당금\n재원확보"]
[null,"한국연구재단","Y","홍길동","아버지를 아버지라고~~\n(2023.01.01.~2023.12.31.)","2023.01.01.~2023.06.30.",1000000,200000,{"$f":"(G15/G8)*0.1","v":0.30000000000000004},"Y","Y"]
[null,"한국연구재단","Y","이순신","내 죽음을 적에게~~\n(2023.01.01.~2023.12.31.)","2023.07.01.~2023.08.31.",2000000,200000,{"$f":"(G16/G9)*0.1","v":0.15000000000000002},"Y","Y"]
[null,null,null,null,null,"2023.09.01.~2023.12.31",null,null,{"$f":"(G17/G9)*0.1","v":0.17500000000000002}]
[null,"한국산업\n기술평가원","Y","홍길동","아버지는~~\n(2023.01.01.~2013.12.31.)","2023.01.01.~2023.06.30.",2000000,"-",{"$f":"(G15/G11)*0.1","v":0.15000000000000002},"Y","Y"]
[null,"중소기업기술\n정보진흥원","Y","이순신","내 죽음은~~\n(2023.01.01.~2023.12.31.)","2023.07.01.~2023.08.31.",1000000,"-",{"$f":"(G16/G12)*0.1","v":0.30000000000000004},"Y","Y"]
[null,null,null,null,null,"2023.09.01.~2023.12.31",null,null,{"$f":"(G17/G12)*0.1","v":0.35000000000000003}]
[null,"부산광역시","N","이순신","이순신 동상\n(2023.09.01.~2023.12.31.)","2023.09.01.~2023.12.31.",500000,"-",{"$f":"(G17/G14)*0.1","v":0.70000000000000007},"Y","Y"]
[null,"기간별 월 급여 요약",null,null,null,"2023.01.01-2023.06.30.",{"$f":"G8+G11","v":3000000},200000]
[null,null,null,null,null,"2023.07.01-2023.08.31.",{"$f":"SUM(G9,G12)","v":3000000},200000]
[null,null,null,null,null,"2023.09.01.-2023.12.31.",{"$f":"SUM(G9,G12,G14)","v":3500000},200000]

{"sheet":"Ⅳ","index":20,"n_rows":38,"n_cols":18,"rows_kept":38,"cut":false,"hidden":false,"merged":[[3,9,3,17],[4,9,5,9],[4,10,5,10],[4,11,5,11],[4,12,5,12],[4,13,5,13],[4,14,5,14],[4,15,5,15],[4,16,5,16],[4,17,5,17],[15,1,15,7],[14,1,14,7],[3,1,3,7],[4,1,4,7],[10,1,10,7],[11,1,11,7],[12,1,12,7],[13,1,13,7],[8,3,8,4],[8,6,8,7],[9,3,9,7],[5,5,5,7],[8,1,9,1],[5,1,7,1],[6,3,6,7],[7,3,7,7],[31,1,31,7],[27,1,27,7],[26,1,26,7],[24,1,24,7],[16,1,16,7],[21,1,21,7],[20,1,20,7],[28,1,28,7],[29,1,29,7],[30,1,30,7],[23,1,23,7],[22,1,22,7],[32,1,32,7],[34,1,34,7],[33,1,33,7],[35,1,35,7],[37,1,37,7]]}
[]
[]
[]
[null,"일용근로계약서",null,null,null,null,null,null,null,"일용직 인건비 활용 내역서"]
[null,"1. 양당사자(계약자)",null,null,null,null,null,null,null,"구분                             \n        순서           ","성명","근무일자","근무요일","근무시간","근무내용","근무단가","지급액","일용직\n(날인 또는 서명)"]
[null,"사용자","성명",null,"사업종류","서비스(연구및기술용역)"]
[null,null,"사업체명","부산대학교 산학협력단(oo과)",null,null,null,null,null,1]
[null,null,"소재지","부산시 금정구 부산대학로 63번길",null,null,null,null,null,2]
[null,"근로자","성명",null,null,"주민등록번호",null,null,null,3]
[null,null,"주소",null,null,null,null,null,null,4]
[null,"2. 근로조건",null,null,null,null,null,null,null,5]
[null,"    가. 보수 지급액 및 방법 ",null,null,null,null,null,null,null,6]
[null,"       1) 보수는 시간당 oooo원(주휴 수당 포함)",null,null,null,null,null,null,null,7]
[null,"       2) 보수에는 국민연금, 국민건강보험료, 고용보험료, 산업재해보상보험료 등 법정보험료의 ",null,null,null,null,null,null,null,8]
[null,"          본인 부담금 포함",null,null,null,null,null,null,null,9]
[null,"       3) 보수의 지급은 매월 초(전 월에 대한 보수)에 근로자의 통장으로 계좌입금을 원칙으로 함",null,null,null,null,null,null,null,10]
[null,"       4) 계약기간 중 근로자가 퇴직하거나 결근할 경우 시급으로 계산하여 지급",null,null,null,null,null,null,null,11]
[null,"    나. 근로조건 : 1일 5시간으로(13:00-18:00)",null,null,null,null,null,null,null,12]
[null,"    다. 근무내용 : ",null,null,null,null,null,null,null,13]
[null,"    라. 해 고 : 다음사항에 해당되는 경우 해고할 수 있다.",null,null,null,null,null,null,null,14]
[null,"       1) 계속하여 3일이상 무단결근한 경우와 한달에 3일이상 무단결근한 경우",null,null,null,null,null,null,null,15]
[null,"       2) 학교의 정당한 업무지시에 따르지 않을 경우",null,null,null,null,null,null,null,16]
[null,"       3) 업무를 태만하게 하거나 업무수행능력이 부족한 경우 ",null,null,null,null,null,null,null,17]
[null,"       4) 신체 및 정신상의 이상으로 업무를 수행하기 곤란한 경우 ",null,null,null,null,null,null,null,18]
[null,"       5) 기타 사회통념상 해고사유로 인정될 경우 ",null,null,null,null,null,null,null,19]
[null,"    마. 취업장소 : 부산대학교 산학협력단(주근무지: ooo)",null,null,null,null,null,null,null,20]
[null,"    바. 기타 근로조건은 관련법령과 관례에 의함."]
[]
[]
[null,"3. 근로계약기간 :      년     월     일 ~    년     월     일"]
[]
[]
[]
[null,"년      월      일"]
[]
[null,"사용자 : 부산대학교 산학협력단장  (인)"]
[]
[null,"근로자 :                (인)"]

{"sheet":"Ⅴ","index":21,"n_rows":22,"n_cols":6,"rows_kept":22,"cut":false,"hidden":false,"merged":[[14,1,14,5],[23,3,23,4],[25,3,25,4],[13,1,13,5],[15,1,15,5],[18,1,18,2],[18,4,18,5],[16,1,17,5],[3,1,3,5],[7,1,7,5],[8,1,8,5],[9,1,9,5],[12,1,12,5],[10,1,10,2],[10,3,10,4],[11,1,11,2],[4,2,4,3],[5,2,5,5],[6,2,6,3],[11,3,11,4]]}
[]
[]
[]
[null,"수행기관 변경 동의서"]
[null,"연구책임자","학과(전공)",null,"성 명"]
[null,"연구과제명"]
[null,"지원기관",null,null,"연구기간"]
[]
[null,"위의 연구과제 수행기관을 아래와 같이 변경하는데 동의합니다."]
[]
[null,"변경 전 수행기관",null,"변경 후 수행기관",null,"변경일자"]
[]
[]
[null,"년           월           일"]
[]
[null,"연구책임자:                            (인)"]
[]
[]
[null,"변경 전 수행기관",null,null,"변경 후 수행기관"]
[]
[null,"기관명",null,null,"기관명"]
[null,"기관장    ",null,"(직인)","기관장","(직인)"]

{"sheet":"Ⅵ","index":22,"n_rows":46,"n_cols":40,"rows_kept":46,"cut":false,"hidden":false,"merged":[[14,4,14,8],[14,9,14,13],[15,0,16,0],[15,1,16,1],[16,4,16,8],[16,9,16,13],[16,14,16,18],[17,0,18,0],[17,1,18,1],[18,4,18,8],[18,9,18,13],[18,14,18,18],[21,0,22,0],[21,1,22,1],[22,4,22,8],[22,9,22,13],[22,14,22,18],[19,0,20,0],[19,1,20,1],[20,4,20,8],[20,9,20,13],[20,14,20,18],[7,19,8,19],[8,4,8,8],[8,14,8,18],[8,9,8,13],[2,0,2,19],[3,15,3,19],[4,8,4,13],[4,15,4,19],[5,9,5,13],[5,15,5,17],[7,0,8,0],[7,1,8,1],[7,2,8,2],[7,3,8,3],[7,4,7,18],[3,0,3,14],[12,9,12,13],[12,14,12,18],[9,0,10,0],[9,1,10,1],[9,4,9,8],[9,9,9,13],[9,14,9,18],[10,4,10,8],[0,21,0,22],[1,21,1,22],[3,33,3,34],[3,35,3,39],[4,33,6,34],[0,24,0,31],[1,24,1,31],[2,24,2,31],[1,33,1,39],[4,22,19,22],[17,34,21,34],[45,33,45,39],[27,24,28,31],[29,24,30,31],[7,33,21,33],[7,34,8,34],[24,24,24,31],[36,34,38,34],[39,34,40,34],[42,34,44,34],[25,24,25,31],[26,24,26,31],[8,24,11,24],[12,24,15,24],[16,24,19,24],[20,24,23,24],[36,33,44,33],[6,0,6,19],[2,21,2,22],[2,33,2,39],[9,34,11,34],[12,34,16,34],[3,27,3,29],[4,24,7,24],[4,21,19,21],[10,9,10,13],[10,14,10,18],[11,0,12,0],[11,1,12,1],[13,0,14,0],[13,1,14,1],[14,14,14,18],[12,4,12,8],[22,33,35,33],[22,34,24,34],[25,34,27,34],[28,34,30,34],[31,34,35,34]]}
[null,null,null,null,null,null,null,null,null,null,null,null,null,null,null,null,null,null,null,null,null,"[별표 1] <개정 2022. 5. 9.>",null,null,"[별표 4] <개정 2021.05.25.>"]
[null,null,null,null,null,null,null,null,null,null,null,null,null,null,null,null,null,null,null,null,null,"여비 지급 구분표",null,null,"국외 여비 지급표",null,null,null,null,null,null,null,null,"국가 및 도시별 등급 구분"]
["국외 여행 계산기",null,null,null,null,null,null,null,null,null,null,null,null,null,null,null,null,null,null,null,null,null,null,null,"(단위: 미 달러화($))"]
[null,null,null,null,null,null,null,null,null,null,null,null,null,null,null,"환  율  적  용",null,null,null,null,null,"구분","해당 공무원",null,"구    분","등급","일비","숙박비",null,null,"숙박비 할인정액","식비",null,"등급",null,"국가 및 도시"]
[null,null,null,null,null,null,null,null,"여행 국가 및 도시(등급)",null,null,null,null,null,null,"2023-08-01",null,null,null,null,null,"제1호","가. 대통령, 국무총리, 부총리, 감사원장, 국무위원, 검찰총장, 통상교섭본부장, 「공무원보수규정」 별표 12 비고 제1호다목을 적용받는 총장, 대장, 그 밖에 국무위원 상당 보수를 받는 공무원\n\n나. 인사혁신처장, 법제처장, 식품의약품안전처장, 과학기술혁신본부장, 차관, 14등급의 직위에 임용된 외무공무원, 치안총감, 소방총감, 중장, 그 밖에 차관 상당 보수를 받는 공무원\n\n다. 13등급부터 12등급까지의 직위에 임용된 외무공무원, 대검찰청 검사급 이상의 검사(검찰총장은 제외한다) 및 10호봉 이상의 검사, 10호봉 이상의 헌법연구관, 치안정감, 소방정감, 「공무원보수규정」 별표 12 비고 제1호가목 또는 나목을 적용받는 총장, 대학교의 부총장, 대학원장, 대학교의 학장ㆍ처장ㆍ기획연구실장ㆍ교양과정부장， 한국교원대학교 교수부장, 한국예술종합학교 원장ㆍ처장, 소장ㆍ준장, 고위(감사)공무원단 가등급 직위에 임용된 공무원, 1급 공무원, 1급 상당 보수를 받는 공무원, 「공무원보수규정」 별표 33 제7호가목의 연봉등급 1호에 해당하는 일반임기제공무원, 「공무원임용령」 별표 4의2 제1호부터 제3호까지의 임용등급 가급에 해당하는 전문임기제공무원(실장급 직위에 임용된 사람만 해당한다)\n\n라. 11등급부터 9등급까지(국장급만 해당한다)의 직위에 임용된 외무공무원, 9호봉 이하의 검사, 9호봉 이하의 헌법연구관, 헌법연구관보, 치안감ㆍ경무관, 소방감ㆍ소방준감, 대학 및 전문대학의 교수ㆍ부교수, 교육부 본부 및 국가교육위원회의 장학관 및 교육연구관, 「지방교육행정기관의 행정기구와 정원기준 등에 관한 규정」 제2조제2호에 따른 시ㆍ도 교육청의 국장인 장학관, 같은 조 제4호에 따른 교육지원청의 교육장, 초ㆍ중ㆍ고등학교의 교장, 대령ㆍ중령, 고위(감사)공무원단 나등급 직위에 임용된 공무원, 2급 및 3급(국장급만 해당한다) 공무원, 2급 및 3급(국장급만 해당한다) 공무원에 상당하는 보수를 받는 공무원, 「공무원보수규정」 별표 33 제7호가목의 연봉등급 2호 또는 3호에 해당하는 일반임기제공무원, 「공무원임용령」 별표 4의2 제1호부터 제3호까지의 임용등급 가급에 해당하는 전문임기제공무원(국장급 직위에 임용된 사람만 해당한다)",null,"1","가",60,"실비(상한액: ",471,")",400,186,null,"가",null,"도쿄","뉴욕","런던","로스엔젤레스","모스크바"]
[null,null,null,null,null,null,null,null,{"$f":"IF($J$6=\"\",\"\",IFERROR(INDIRECT(\"'국가 및 도시별 등급 구분'!B\"&INDEX({5,8,23,37},MATCH(MAX(IF('국가 및 도시별 등급 구분'!$D$5:$H$45=$J$6,ROW('국가 및 도시별 등급 구분'!$D$5:$H$45))),{5,8,23,37},1)))&\"등급\",\"\"))","v":"나등급"},"일본",null,null,null,null,null,1,null,null,"=",1287,null,null,null,null,null,"나",60,"실비(상한액: ",422,")",359,136,null,null,null,"샌프란시스코","워싱턴 D.C.","파리","홍콩","제네바"]
[null,null,null,null,null,null,null,null,null,null,null,null,null,null,null,null,null,null,null,null,null,null,null,null,null,"다",60,"실비(상한액: ",271,")",230,102,null,null,null,"싱가포르"]
["구  분","여행\n국가 및\n도시 등급","합  계","운임\n(정액)","체    재    비",null,null,null,null,null,null,null,null,null,null,null,null,null,null,"준비금",null,null,null,null,null,"라",60,"실비(상한액: ",216,")",184,85,null,"나","아시아주·오세아니아주","베이징","사모아","오스트레일리아","인도","일본"]
[null,null,null,null,"일  비",null,null,null,null,"숙박비",null,null,null,null,"식  비",null,null,null,null,null,null,null,null,null,"2","가",50,"실비(상한액: ",389,")",331,160,null,null,null,"카자흐스탄","쿡제도","타이완","파푸아뉴기니"]
["합  계",null,{"$f":"C11/T6","v":4761.6239316239316},{"$f":"D11/$T$6","v":0},{"$f":"SUM(I12,I14,I16,I18,I20,I22)","v":1065},null,null,null,null,{"$f":"SUM(N12,N14,N16,N18,N20,N22)","v":2592},null,null,null,null,{"$f":"SUM(S12,S14,S16,S18,S20,S22)","v":1104.6666666666667},null,null,null,null,{"$f":"T11/$T$6","v":0},null,null,null,null,null,"나",50,"실비(상한액: ",289,")",246,117,null,null,"남·북아메리카주","멕시코","미국","바베이도스","세인트루시아","세인트빈센트그레나딘"]
[null,null,{"$f":"SUMPRODUCT((N(MOD(ROW($C$12:$C$23),2)=1))*($C$12:$C$23))","v":6128210},{"$f":"SUMPRODUCT((N(MOD(ROW($D$12:$D$23),2)=1))*($D$12:$D$23))","v":0},{"$f":"ROUNDDOWN(E10*$T$6,-1)","v":1370650},null,null,null,null,{"$f":"ROUNDDOWN(J10*$T$6,-1)","v":3335900},null,null,null,null,{"$f":"ROUNDDOWN(O10*$T$6,-1)","v":1421700},null,null,null,null,{"$f":"SUMPRODUCT((N(MOD(ROW($T$12:$T$23),2)=1))*($T$12:$T$23))","v":0},null,null,null,null,null,"다",50,"실비(상한액: ",215,")",183,87,null,null,null,"세인트키츠네비스","아이티","앤티가바부다","자메이카","캐나다"]
[4,"다",{"$f":"C13/$T$6","v":908.98989898989896},{"$f":"D13/$T$6","v":0},{"$f":"IF(ISERROR(OFFSET('국외여비 지급표'!D$4,MATCH($B12,{\"가\",\"나\",\"다\",\"라\"},)+(($A12-1)*4),)),\"\",(OFFSET('국외여비 지급표'!D$4,MATCH($B12,{\"가\",\"나\",\"다\",\"라\"},)+(($A12-1)*4),)))","v":35},"×",5,"=",{"$f":"IF(ISERROR(E12*G12),\"\",(E12*G12))","v":175},{"$f":"IF(ISERROR(OFFSET('국외여비 지급표'!H$4,MATCH($B12,{\"가\",\"나\",\"다\",\"라\"},)+(($A12-1)*4),)),\"\",(OFFSET('국외여비 지급표'!H$4,MATCH($B12,{\"가\",\"나\",\"다\",\"라\"},)+(($A12-1)*4),)))","v":111},"×",4,"=",{"$f":"IF(ISERROR(J12*L12),\"\",(J12*L12))","v":444},{"$f":"IF(ISERROR(OFFSET('국외여비 지급표'!I$4,MATCH($B12,{\"가\",\"나\",\"다\",\"라\"},)+(($A12-1)*4),)),\"\",(OFFSET('국외여비 지급표'!I$4,MATCH($B12,{\"가\",\"나\",\"다\",\"라\"},)+(($A12-1)*4),)))/3","v":19.333333333333332},"×",15,"=",{"$f":"IF(ISERROR(O12*Q12),\"\",(O12*Q12))","v":290},{"$f":"T13/$T$6","v":0},null,null,null,null,null,"라",50,"실비(상한액: ",161,")",137,73,null,null,null,"트리니다드토바고"]
[null,null,{"$f":"ROUNDDOWN(SUM(D13:T13),-1)","v":1169870},null,{"$f":"IF(ISERROR(ROUNDDOWN(I12*$T$6,-1)),\"\",(ROUNDDOWN(I12*$T$6,-1)))","v":225220},null,null,null,null,{"$f":"IF(ISERROR(ROUNDDOWN(N12*$T$6,-1)),\"\",(ROUNDDOWN(N12*$T$6,-1)))","v":571420},null,null,null,null,{"$f":"IF(ISERROR(ROUNDDOWN(S12*$T$6,-1)),\"\",(ROUNDDOWN(S12*$T$6,-1)))","v":373230},null,null,null,null,null,null,null,null,null,"3","가",40,"실비(상한액: ",282,")",240,133,null,null,"유럽주","그리스","네덜란드","노르웨이","덴마크","독일"]
[4,"다",{"$f":"C15/$T$6","v":908.98989898989896},{"$f":"D15/$T$6","v":0},{"$f":"IF(ISERROR(OFFSET('국외여비 지급표'!D$4,MATCH($B14,{\"가\",\"나\",\"다\",\"라\"},)+(($A14-1)*4),)),\"\",(OFFSET('국외여비 지급표'!D$4,MATCH($B14,{\"가\",\"나\",\"다\",\"라\"},)+(($A14-1)*4),)))","v":35},"×",5,"=",{"$f":"IF(ISERROR(E14*G14),\"\",(E14*G14))","v":175},{"$f":"IF(ISERROR(OFFSET('국외여비 지급표'!H$4,MATCH($B14,{\"가\",\"나\",\"다\",\"라\"},)+(($A14-1)*4),)),\"\",(OFFSET('국외여비 지급표'!H$4,MATCH($B14,{\"가\",\"나\",\"다\",\"라\"},)+(($A14-1)*4),)))","v":111},"×",4,"=",{"$f":"IF(ISERROR(J14*L14),\"\",(J14*L14))","v":444},{"$f":"IF(ISERROR(OFFSET('국외여비 지급표'!I$4,MATCH($B14,{\"가\",\"나\",\"다\",\"라\"},)+(($A14-1)*4),)),\"\",(OFFSET('국외여비 지급표'!I$4,MATCH($B14,{\"가\",\"나\",\"다\",\"라\"},)+(($A14-1)*4),)))/3","v":19.333333333333332},"×",15,"=",{"$f":"IF(ISERROR(O14*Q14),\"\",(O14*Q14))","v":290},{"$f":"T15/$T$6","v":0},null,null,null,null,null,"나",40,"실비(상한액: ",207,")",176,99,null,null,null,"러시아","룩셈부르크","벨기에","사이프러스","스웨덴"]
[null,null,{"$f":"ROUNDDOWN(SUM(D15:T15),-1)","v":1169870},null,{"$f":"IF(ISERROR(ROUNDDOWN(I14*$T$6,-1)),\"\",(ROUNDDOWN(I14*$T$6,-1)))","v":225220},null,null,null,null,{"$f":"IF(ISERROR(ROUNDDOWN(N14*$T$6,-1)),\"\",(ROUNDDOWN(N14*$T$6,-1)))","v":571420},null,null,null,null,{"$f":"IF(ISERROR(ROUNDDOWN(S14*$T$6,-1)),\"\",(ROUNDDOWN(S14*$T$6,-1)))","v":373230},null,null,null,null,null,null,null,null,null,null,"다",40,"실비(상한액: ",162,")",138,72,null,null,null,"스위스","스페인","아이슬란드","아일랜드","영국"]
[4,"다",{"$f":"C17/$T$6","v":908.98989898989896},{"$f":"D17/$T$6","v":0},{"$f":"IF(ISERROR(OFFSET('국외여비 지급표'!D$4,MATCH($B16,{\"가\",\"나\",\"다\",\"라\"},)+(($A16-1)*4),)),\"\",(OFFSET('국외여비 지급표'!D$4,MATCH($B16,{\"가\",\"나\",\"다\",\"라\"},)+(($A16-1)*4),)))","v":35},"×",5,"=",{"$f":"IF(ISERROR(E16*G16),\"\",(E16*G16))","v":175},{"$f":"IF(ISERROR(OFFSET('국외여비 지급표'!H$4,MATCH($B16,{\"가\",\"나\",\"다\",\"라\"},)+(($A16-1)*4),)),\"\",(OFFSET('국외여비 지급표'!H$4,MATCH($B16,{\"가\",\"나\",\"다\",\"라\"},)+(($A16-1)*4),)))","v":111},"×",4,"=",{"$f":"IF(ISERROR(J16*L16),\"\",(J16*L16))","v":444},{"$f":"IF(ISERROR(OFFSET('국외여비 지급표'!I$4,MATCH($B16,{\"가\",\"나\",\"다\",\"라\"},)+(($A16-1)*4),)),\"\",(OFFSET('국외여비 지급표'!I$4,MATCH($B16,{\"가\",\"나\",\"다\",\"라\"},)+(($A16-1)*4),)))/3","v":19.333333333333332},"×",15,"=",{"$f":"IF(ISERROR(O16*Q16),\"\",(O16*Q16))","v":290},{"$f":"T17/$T$6","v":0},null,null,null,null,null,"라",40,"실비(상한액: ",108,")",92,61,null,null,null,"오스트리아","이탈리아","포르투갈","프랑스","핀란드"]
[null,null,{"$f":"ROUNDDOWN(SUM(D17:T17),-1)","v":1169870},null,{"$f":"IF(ISERROR(ROUNDDOWN(I16*$T$6,-1)),\"\",(ROUNDDOWN(I16*$T$6,-1)))","v":225220},null,null,null,null,{"$f":"IF(ISERROR(ROUNDDOWN(N16*$T$6,-1)),\"\",(ROUNDDOWN(N16*$T$6,-1)))","v":571420},null,null,null,null,{"$f":"IF(ISERROR(ROUNDDOWN(S16*$T$6,-1)),\"\",(ROUNDDOWN(S16*$T$6,-1)))","v":373230},null,null,null,null,null,null,null,null,null,"4","가",35,"실비(상한액: ",223,")",190,107,null,null,null,"헝가리"]
[5,"다",{"$f":"C19/$T$6","v":1017.3271173271173},{"$f":"D19/$T$6","v":0},{"$f":"IF(ISERROR(OFFSET('국외여비 지급표'!D$4,MATCH($B18,{\"가\",\"나\",\"다\",\"라\"},)+(($A18-1)*4),)),\"\",(OFFSET('국외여비 지급표'!D$4,MATCH($B18,{\"가\",\"나\",\"다\",\"라\"},)+(($A18-1)*4),)))","v":30},"×",9,"=",{"$f":"IF(ISERROR(E18*G18),\"\",(E18*G18))","v":270},{"$f":"IF(ISERROR(OFFSET('국외여비 지급표'!H$4,MATCH($B18,{\"가\",\"나\",\"다\",\"라\"},)+(($A18-1)*4),)),\"\",(OFFSET('국외여비 지급표'!H$4,MATCH($B18,{\"가\",\"나\",\"다\",\"라\"},)+(($A18-1)*4),)))","v":90},"×",7,"=",{"$f":"IF(ISERROR(J18*L18),\"\",(J18*L18))","v":630},{"$f":"IF(ISERROR(OFFSET('국외여비 지급표'!I$4,MATCH($B18,{\"가\",\"나\",\"다\",\"라\"},)+(($A18-1)*4),)),\"\",(OFFSET('국외여비 지급표'!I$4,MATCH($B18,{\"가\",\"나\",\"다\",\"라\"},)+(($A18-1)*4),)))/3","v":14.666666666666666},"×",8,"=",{"$f":"IF(ISERROR(O18*Q18),\"\",(O18*Q18))","v":117.33333333333333},{"$f":"T19/$T$6","v":0},null,null,null,null,null,"나",35,"실비(상한액: ",160,")",136,78,null,null,"중동·아프리카주","가나","가봉","남수단","남아프리카공화국","리비아"]
[null,null,{"$f":"ROUNDDOWN(SUM(D19:T19),-1)","v":1309300},null,{"$f":"IF(ISERROR(ROUNDDOWN(I18*$T$6,-1)),\"\",(ROUNDDOWN(I18*$T$6,-1)))","v":347490},null,null,null,null,{"$f":"IF(ISERROR(ROUNDDOWN(N18*$T$6,-1)),\"\",(ROUNDDOWN(N18*$T$6,-1)))","v":810810},null,null,null,null,{"$f":"IF(ISERROR(ROUNDDOWN(S18*$T$6,-1)),\"\",(ROUNDDOWN(S18*$T$6,-1)))","v":151000},null,null,null,null,null,null,null,null,null,null,"다",35,"실비(상한액: ",130,")",111,58,null,null,null,"모로코","바레인","사우디아라비아","세일셸","아랍에미리트"]
[5,"다",{"$f":"C21/$T$6","v":1017.3271173271173},{"$f":"D21/$T$6","v":0},{"$f":"IF(ISERROR(OFFSET('국외여비 지급표'!D$4,MATCH($B20,{\"가\",\"나\",\"다\",\"라\"},)+(($A20-1)*4),)),\"\",(OFFSET('국외여비 지급표'!D$4,MATCH($B20,{\"가\",\"나\",\"다\",\"라\"},)+(($A20-1)*4),)))","v":30},"×",9,"=",{"$f":"IF(ISERROR(E20*G20),\"\",(E20*G20))","v":270},{"$f":"IF(ISERROR(OFFSET('국외여비 지급표'!H$4,MATCH($B20,{\"가\",\"나\",\"다\",\"라\"},)+(($A20-1)*4),)),\"\",(OFFSET('국외여비 지급표'!H$4,MATCH($B20,{\"가\",\"나\",\"다\",\"라\"},)+(($A20-1)*4),)))","v":90},"×",7,"=",{"$f":"IF(ISERROR(J20*L20),\"\",(J20*L20))","v":630},{"$f":"IF(ISERROR(OFFSET('국외여비 지급표'!I$4,MATCH($B20,{\"가\",\"나\",\"다\",\"라\"},)+(($A20-1)*4),)),\"\",(OFFSET('국외여비 지급표'!I$4,MATCH($B20,{\"가\",\"나\",\"다\",\"라\"},)+(($A20-1)*4),)))/3","v":14.666666666666666},"×",8,"=",{"$f":"IF(ISERROR(O20*Q20),\"\",(O20*Q20))","v":117.33333333333333},{"$f":"T21/$T$6","v":0},null,null,null,null,null,"라",35,"실비(상한액: ",85,")",72,49,null,null,null,"앙공라","에티오피아","오만","우간다","이스라엘"]
[null,null,{"$f":"ROUNDDOWN(SUM(D21:T21),-1)","v":1309300},null,{"$f":"IF(ISERROR(ROUNDDOWN(I20*$T$6,-1)),\"\",(ROUNDDOWN(I20*$T$6,-1)))","v":347490},null,null,null,null,{"$f":"IF(ISERROR(ROUNDDOWN(N20*$T$6,-1)),\"\",(ROUNDDOWN(N20*$T$6,-1)))","v":810810},null,null,null,null,{"$f":"IF(ISERROR(ROUNDDOWN(S20*$T$6,-1)),\"\",(ROUNDDOWN(S20*$T$6,-1)))","v":151000},null,null,null,null,null,null,"제2호","제1호에 해당하지 않는 공무원(「공무원보수규정」을 적용받는 공무원을 포함한다) ",null,"5","가",30,"실비(상한액: ",176,")",150,81,null,null,null,"이집트","적도기니","카타르","코트디부아르","콩고민주공화국"]
[null,null,{"$f":"C23/$T$6","v":0},{"$f":"D23/$T$6","v":0},{"$f":"IF(ISERROR(OFFSET('국외여비 지급표'!C$4,MATCH($B22,{\"가\",\"나\",\"다\",\"라\"},)+(($A22-1)*4),)),\"\",(OFFSET('국외여비 지급표'!C$4,MATCH($B22,{\"가\",\"나\",\"다\",\"라\"},)+(($A22-1)*4),)))","v":""},"×",9,"=",{"$f":"IF(ISERROR(E22*G22),\"\",(E22*G22))","v":""},{"$f":"IF(ISERROR(OFFSET('국외여비 지급표'!H$4,MATCH($B22,{\"가\",\"나\",\"다\",\"라\"},)+(($A22-1)*4),)),\"\",(OFFSET('국외여비 지급표'!H$4,MATCH($B22,{\"가\",\"나\",\"다\",\"라\"},)+(($A22-1)*4),)))","v":""},"×",7,"=",{"$f":"IF(ISERROR(J22*L22),\"\",(J22*L22))","v":""},{"$f":"IF(ISERROR(OFFSET('국외여비 지급표'!I$4,MATCH($B22,{\"가\",\"나\",\"다\",\"라\"},)+(($A22-1)*4),)),\"\",(OFFSET('국외여비 지급표'!I$4,MATCH($B22,{\"가\",\"나\",\"다\",\"라\"},)+(($A22-1)*4),)))/3","v":{"$error":"#VALUE!"}},"×",8,"=",{"$f":"IF(ISERROR(O22*Q22),\"\",(O22*Q22))","v":""},{"$f":"T23/$T$6","v":0},null,null,null,null,null,"나",30,"실비(상한액: ",137,")",116,59,null,null,null,"쿠웨이트"]
[null,null,{"$f":"ROUNDDOWN(SUM(D23:T23),-1)","v":0},null,{"$f":"IF(ISERROR(ROUNDDOWN(I22*$T$6,-1)),\"\",(ROUNDDOWN(I22*$T$6,-1)))","v":""},null,null,null,null,{"$f":"IF(ISERROR(ROUNDDOWN(N22*$T$6,-1)),\"\",(ROUNDDOWN(N22*$T$6,-1)))","v":""},null,null,null,null,{"$f":"IF(ISERROR(ROUNDDOWN(S22*$T$6,-1)),\"\",(ROUNDDOWN(S22*$T$6,-1)))","v":""},null,null,null,null,null,null,null,null,null,null,"다",30,"실비(상한액: ",106,")",90,44,null,"다","아시아주·오세아니아주","뉴질랜드","니우에","마셜군도","말레이시아","방글라데시"]
[null,null,null,null,null,null,null,null,null,null,null,null,null,null,null,null,null,null,null,null,null,null,null,null,null,"라",30,"실비(상한액: ",81,")",69,37,null,null,null,"브루나이","아제르바이잔","인도네시아","중국","키르키즈공화국"]
[null,null,null,null,null,null,null,null,null,null,null,null,null,null,null,null,null,null,null,null,null,null,null,null,"  ",null,null,null,null,null,null,null,null,null,null,"타이","터키","투르크메니스탄","파키스탄","피지"]
[null,null,null,null,null,null,null,null,null,null,null,null,null,null,null,null,null,null,null,null,null,null,null,null,"※ 비고",null,null,null,null,null,null,null,null,null,"남·북아메리카주","가이아나","과테말라","도미니카공화국","베네수엘라","벨리즈"]
[null,null,null,null,null,null,null,null,null,null,null,null,null,null,null,null,null,null,null,null,null,null,null,null,"1. 별표 1의 제1호가목 중 대통령과 국무총리의 일비, 숙박비 및 식비는 실비로 한다.",null,null,null,null,null,null,null,null,null,null,"브라질","아르헨티나","에콰도르","우루과이","칠레"]
[null,null,null,null,null,null,null,null,null,null,null,null,null,null,null,null,null,null,null,null,null,null,null,null,"2. 공적 항공마일리지를 사용하여 항공운임을 절약한 공무원에 대해서는 일비의 50퍼센트를 추가로 지급하되, 추가로 지급되는 일비 총액은 공적 항공마일리지 사용으로 절약된 항공운임의 범위에서 인사혁신처장이 정하는 바에 따른다.",null,null,null,null,null,null,null,null,null,null,"코스타리카","파나마"]
[null,null,null,null,null,null,null,null,null,null,null,null,null,null,null,null,null,null,null,null,null,null,null,null,null,null,null,null,null,null,null,null,null,null,"유럽주","라트비아","루마니아","리투아니아","몬테테그로","불가리아"]
[null,null,null,null,null,null,null,null,null,null,null,null,null,null,null,null,null,null,null,null,null,null,null,null,"3. 숙박비는 실비 상한액에도 불구하고 인사혁신처장이 정하는 기준에 따라 실비 상한액보다 낮을 금액(이하 \"할인정액\"이라 한다)으로 지급 할 수 있으며, 할인정액으로 지급한 경에는 제8조의2를 적용하지 않는다",null,null,null,null,null,null,null,null,null,null,"세르비아","슬로바키아","슬로베니아","에스토니아","우크라이나"]
[null,null,null,null,null,null,null,null,null,null,null,null,null,null,null,null,null,null,null,null,null,null,null,null,null,null,null,null,null,null,null,null,null,null,null,"체코","크로아티아","폴란드"]
[null,null,null,null,null,null,null,null,null,null,null,null,null,null,null,null,null,null,null,null,null,null,null,null,null,null,null,null,null,null,null,null,null,null,"중동·아프리카주","가니","나이지리아","니제르","라이베리아","레바논"]
[null,null,null,null,null,null,null,null,null,null,null,null,null,null,null,null,null,null,null,null,null,null,null,null,null,null,null,null,null,null,null,null,null,null,null,"르완다","말리","모리셔스","모잠비크","보츠와나"]
[null,null,null,null,null,null,null,null,null,null,null,null,null,null,null,null,null,null,null,null,null,null,null,null,null,null,null,null,null,null,null,null,null,null,null,"부르키나파소","상투메프린시페","세네갈","수단","스와질란드"]
[null,null,null,null,null,null,null,null,null,null,null,null,null,null,null,null,null,null,null,null,null,null,null,null,null,null,null,null,null,null,null,null,null,null,null,"시에라리온","아프가니스탄","알제리","요르단","이라크"]
[null,null,null,null,null,null,null,null,null,null,null,null,null,null,null,null,null,null,null,null,null,null,null,null,null,null,null,null,null,null,null,null,null,null,null,"잠비아","중앙아프리카공화국","카메룬","케냐","탄자니아"]
[null,null,null,null,null,null,null,null,null,null,null,null,null,null,null,null,null,null,null,null,null,null,null,null,null,null,null,null,null,null,null,null,null,"라","아시아주·오세아니아주","네팔","동티모르","라오스","몽골","미얀마"]
[null,null,null,null,null,null,null,null,null,null,null,null,null,null,null,null,null,null,null,null,null,null,null,null,null,null,null,null,null,null,null,null,null,null,null,"미크로네시아","베트남","스리랑카","우즈베키스탄","캄보디아"]
[null,null,null,null,null,null,null,null,null,null,null,null,null,null,null,null,null,null,null,null,null,null,null,null,null,null,null,null,null,null,null,null,null,null,null,"타지키스탄","통가","필리핀"]
[null,null,null,null,null,null,null,null,null,null,null,null,null,null,null,null,null,null,null,null,null,null,null,null,null,null,null,null,null,null,null,null,null,null,"남·북아메리카주","니카라과","볼리비아","수리남","엘살바도르","온두라스"]
[null,null,null,null,null,null,null,null,null,null,null,null,null,null,null,null,null,null,null,null,null,null,null,null,null,null,null,null,null,null,null,null,null,null,null,"콜롬비아","파라과이","페루"]
[null,null,null,null,null,null,null,null,null,null,null,null,null,null,null,null,null,null,null,null,null,null,null,null,null,null,null,null,null,null,null,null,null,null,"유럽주","마케도니아","몰도바","벨라루스","보스니아헤르체코비나","알바니아"]
[null,null,null,null,null,null,null,null,null,null,null,null,null,null,null,null,null,null,null,null,null,null,null,null,null,null,null,null,null,null,null,null,null,null,"중동·아프리카주","감비아","기니비사우","나미비아","레소토","마다가스카르"]
[null,null,null,null,null,null,null,null,null,null,null,null,null,null,null,null,null,null,null,null,null,null,null,null,null,null,null,null,null,null,null,null,null,null,null,"말라위","모리타니","소말리아","예맨","이란"]
[null,null,null,null,null,null,null,null,null,null,null,null,null,null,null,null,null,null,null,null,null,null,null,null,null,null,null,null,null,null,null,null,null,null,null,"짐바브웨","튀니지"]
[null,null,null,null,null,null,null,null,null,null,null,null,null,null,null,null,null,null,null,null,null,null,null,null,null,null,null,null,null,null,null,null,null,"※ 국가 및 도시별 등급 구분에 없는 국가는 여행 또는 근무 예정지에서 구분표에 있는 국가 수도까지의 거리가 가장 가까운 국가의 등급을 적용한다."]

{"sheet":"Ⅶ","index":23,"n_rows":49,"n_cols":15,"rows_kept":49,"cut":false,"hidden":false,"merged":[[3,9,4,14],[6,9,6,14],[3,1,4,6],[6,1,6,6],[7,1,7,6],[5,1,5,6],[8,1,8,6],[46,1,46,6],[35,1,35,6],[7,9,7,14],[21,12,21,13],[23,12,23,13],[25,12,25,13],[47,1,47,6],[48,1,48,6],[12,12,12,13],[10,12,10,13],[14,12,15,13],[19,12,19,13],[17,12,17,13]]}
[]
[]
[]
[null,"간접비 계상기준 계산식",null,null,null,null,null,null,null,"간접비 배분기준 계산식"]
[]
[]
[null,"▣ 총연구비의 간접비는 얼마일까?",null,null,null,null,null,null,null,"▣ 각 기관에 배분되는 간접비는 얼마일까?"]
[null,"흰색 빈칸만 수정하여 사용",null,null,null,null,null,null,null,"흰색 빈칸만 수정하여 사용"]
[]
[]
[null,null,null,"사업 구분 선택","일반용역과제 간접비",null,null,null,null,null,null,"간접비 배분기준 선택","국가연구개발사업과제 간접비"]
[]
[null,null,"1. 총 연구비","총 연구비는 얼마입니까?",50000000,"원",null,null,null,null,"1. 간접비","총 간접비는 얼마입니까?",{"$f":"E24","v":10000000},null,"원"]
[]
[null,null,"2. 부가세","부가세가 있습니까?",0,"원 (없으면 0원 )",null,null,null,null,"2. 연구개발능률성과급","연구개발능률성과급 지급 대상 여부",2]
[null,null,null,null,null,null,null,null,null,null,"     간접비 집행 대행 ","간접비 집행 대행 대상 여부"]
[null,null,"3. 위탁연구비","위탁연구비가 있습니까?",0,"원 (없으면 0원 )"]
[null,null,null,null,null,null,null,null,null,null,"3. 결과값","대학",{"$f":"IF(M15=1,M13*0.2,IF(M15=2,M13*0.2,IF(M15=3,M13*0.2,IF(M15=4,M13*0.2,0))))","v":2000000},null,"원"]
[null,null,"3. 간접비 계상기준","간접비 산정비율의 기준은?",20,"%"]
[null,null,null,null,null,null,null,null,null,null,null,"연구실안전관리비",200000,null,"원"]
[]
[null,null,"4. 결과값","직접비(부가세 제외)",{"$f":"E13-E24-E26","v":40000000},"원",null,null,null,null,null,"성과활용지원비",null,null,"원"]
[]
[null,null,null,"간접비",{"$f":"(E13-E15-E17)*(E19*0.01)","v":10000000},"원",null,null,null,null,null,"산학협력단",{"$f":"IF(M15=1,(M13-M18-M20-M22)*5.5/8,IF(M15=2,(M13-M18-M20-M22)*5/8,IF(M15=3,(M13-M18-M20-M22)*4.5/8,IF(M15=4,(M13-M18-M20-M22)*4/8,0))))","v":4875000},null,"원"]
[]
[null,null,null,"부가세",{"$f":"E15","v":0},"원",null,null,null,null,null,"수행기관",{"$f":"IF(M15=1,(M13-M18-M20-M22)*2.5/8,IF(M15=2,(M13-M18-M20-M22)*3/8,IF(M15=3,(M13-M18-M20-M22)*3.5/8,IF(M15=4,(M13-M18-M20-M22)*4/8))))","v":2925000},null,"원"]
[]
[]
[]
[]
[]
[]
[]
[]
[]
[]
[]
[]
[]
[]
[]
[]
[]
[]
[]
[]
[null,"▣ 부산대학교 24.81%(2023년)"]
[null,"국가연구개발사업 연구개발비 사용기준 [별표6] 비영리기관인 연구개발기관별 간접비 고시비율"]
[null,"(제114조제2항 관련)"]

{"sheet":"국가 및 도시별 등급 구분","index":24,"n_rows":46,"n_cols":8,"rows_kept":46,"cut":false,"hidden":true,"merged":[[3,1,3,2],[3,3,3,7],[4,1,6,2],[1,1,1,7],[12,2,16,2],[9,2,11,2],[7,1,21,1],[7,2,8,2],[17,2,21,2],[45,1,45,7],[22,2,24,2],[25,2,27,2],[28,2,30,2],[31,2,35,2],[22,1,35,1],[36,1,44,1],[36,2,38,2],[39,2,40,2],[42,2,44,2]]}
[]
[null,"국가 및 도시별 등급 구분"]
[]
[null,"등급",null,"국가 및 도시"]
[null,"가",null,"도쿄","뉴욕","런던","로스엔젤레스","모스크바"]
[null,null,null,"샌프란시스코","워싱턴 D.C.","파리","홍콩","제네바"]
[null,null,null,"싱가포르"]
[null,"나","아시아주·오세아니아주","베이징","사모아","오스트레일리아","인도","일본"]
[null,null,null,"카자흐스탄","쿡제도","타이완","파푸아뉴기니"]
[null,null,"남·북아메리카주","멕시코","미국","바베이도스","세인트루시아","세인트빈센트그레나딘"]
[null,null,null,"세인트키츠네비스","아이티","앤티가바부다","자메이카","캐나다"]
[null,null,null,"트리니다드토바고"]
[null,null,"유럽주","그리스","네덜란드","노르웨이","덴마크","독일"]
[null,null,null,"러시아","룩셈부르크","벨기에","사이프러스","스웨덴"]
[null,null,null,"스위스","스페인","아이슬란드","아일랜드","영국"]
[null,null,null,"오스트리아","이탈리아","포르투갈","프랑스","핀란드"]
[null,null,null,"헝가리"]
[null,null,"중동·아프리카주","가나","가봉","남수단","남아프리카공화국","리비아"]
[null,null,null,"모로코","바레인","사우디아라비아","세일셸","아랍에미리트"]
[null,null,null,"앙공라","에티오피아","오만","우간다","이스라엘"]
[null,null,null,"이집트","적도기니","카타르","코트디부아르","콩고민주공화국"]
[null,null,null,"쿠웨이트"]
[null,"다","아시아주·오세아니아주","뉴질랜드","니우에","마셜군도","말레이시아","방글라데시"]
[null,null,null,"브루나이","아제르바이잔","인도네시아","중국","키르키즈공화국"]
[null,null,null,"타이","터키","투르크메니스탄","파키스탄","피지"]
[null,null,"남·북아메리카주","가이아나","과테말라","도미니카공화국","베네수엘라","벨리즈"]
[null,null,null,"브라질","아르헨티나","에콰도르","우루과이","칠레"]
[null,null,null,"코스타리카","파나마"]
[null,null,"유럽주","라트비아","루마니아","리투아니아","몬테테그로","불가리아"]
[null,null,null,"세르비아","슬로바키아","슬로베니아","에스토니아","우크라이나"]
[null,null,null,"체코","크로아티아","폴란드"]
[null,null,"중동·아프리카주","가니","나이지리아","니제르","라이베리아","레바논"]
[null,null,null,"르완다","말리","모리셔스","모잠비크","보츠와나"]
[null,null,null,"부르키나파소","상투메프린시페","세네갈","수단","스와질란드"]
[null,null,null,"시에라리온","아프가니스탄","알제리","요르단","이라크"]
[null,null,null,"잠비아","중앙아프리카공화국","카메룬","케냐","탄자니아"]
[null,"라","아시아주·오세아니아주","네팔","동티모르","라오스","몽골","미얀마"]
[null,null,null,"미크로네시아","베트남","스리랑카","우즈베키스탄","캄보디아"]
[null,null,null,"타지키스탄","통가","필리핀"]
[null,null,"남·북아메리카주","니카라과","볼리비아","수리남","엘살바도르","온두라스"]
[null,null,null,"콜롬비아","파라과이","페루"]
[null,null,"유럽주","마케도니아","몰도바","벨라루스","보스니아헤르체코비나","알바니아"]
[null,null,"중동·아프리카주","감비아","기니비사우","나미비아","레소토","마다가스카르"]
[null,null,null,"말라위","모리타니","소말리아","예맨","이란"]
[null,null,null,"짐바브웨","튀니지"]
[null,"※ 국가 및 도시별 등급 구분에 없는 국가는 여행 또는 근무 예정지에서 구분표에 있는 국가 수도까지의 거리가 가장 가까운 국가의 등급을 적용한다."]

{"sheet":"국외여비 지급표","index":25,"n_rows":30,"n_cols":9,"rows_kept":30,"cut":false,"hidden":true,"merged":[[0,1,0,8],[1,1,1,8],[2,1,2,8],[12,1,15,1],[16,1,19,1],[8,1,11,1],[29,1,30,8],[24,1,24,8],[25,1,25,8],[20,1,23,1],[3,4,3,6],[4,1,7,1],[26,1,26,8],[27,1,28,8]]}
[null,"[별표 4] <개정 2021.05.25.>"]
[null,"국외 여비 지급표"]
[null,"(단위: 미 달러화($))"]
[null,"구    분","등급","일비","숙박비",null,null,"숙박비 할인정액","식비"]
[null,"1","가",60,"실비(상한액: ",471,")",400,186]
[null,null,"나",60,"실비(상한액: ",422,")",359,136]
[null,null,"다",60,"실비(상한액: ",271,")",230,102]
[null,null,"라",60,"실비(상한액: ",216,")",184,85]
[null,"2","가",50,"실비(상한액: ",389,")",331,160]
[null,null,"나",50,"실비(상한액: ",289,")",246,117]
[null,null,"다",50,"실비(상한액: ",215,")",183,87]
[null,null,"라",50,"실비(상한액: ",161,")",137,73]
[null,"3","가",40,"실비(상한액: ",282,")",240,133]
[null,null,"나",40,"실비(상한액: ",207,")",176,99]
[null,null,"다",40,"실비(상한액: ",162,")",138,72]
[null,null,"라",40,"실비(상한액: ",108,")",92,61]
[null,"4","가",35,"실비(상한액: ",223,")",190,107]
[null,null,"나",35,"실비(상한액: ",160,")",136,78]
[null,null,"다",35,"실비(상한액: ",130,")",111,58]
[null,null,"라",35,"실비(상한액: ",85,")",72,49]
[null,"5","가",30,"실비(상한액: ",176,")",150,81]
[null,null,"나",30,"실비(상한액: ",137,")",116,59]
[null,null,"다",30,"실비(상한액: ",106,")",90,44]
[null,null,"라",30,"실비(상한액: ",81,")",69,37]
[null,"  "]
[null,"※ 비고"]
[null,"1. 별표 1의 제1호가목 중 대통령과 국무총리의 일비, 숙박비 및 식비는 실비로 한다."]
[null,"2. 공적 항공마일리지를 사용하여 항공운임을 절약한 공무원에 대해서는 일비의 50퍼센트를 추가로 지급하되, 추가로 지급되는 일비 총액은 공적 항공마일리지 사용으로 절약된 항공운임의 범위에서 인사혁신처장이 정하는 바에 따른다."]
[]
[null,"3. 숙박비는 실비 상한액에도 불구하고 인사혁신처장이 정하는 기준에 따라 실비 상한액보다 낮을 금액(이하 \"할인정액\"이라 한다)으로 지급 할 수 있으며, 할인정액으로 지급한 경에는 제8조의2를 적용하지 않는다"]

{"sheet":"연구과제분류","index":26,"n_rows":37,"n_cols":25,"rows_kept":37,"cut":false,"hidden":true,"merged":[[2,0,2,27],[3,0,3,3],[3,4,3,7],[3,8,3,11],[3,12,3,15],[3,16,3,19],[3,20,3,23],[3,24,3,27]]}
[]
[]
["연구과제 분류"]
["연구형태",null,null,null,"학문분야",null,null,null,"연구개발단계",null,null,null,"기술분류",null,null,null,"경제사회목적",null,null,null,"차세대성장동력",null,null,null,"기술분야"]
["단독",null,null,null,"이학",null,null,null,"기초",null,null,null,"수학",null,null,null,"지구개발및 탐사",null,null,null,"디지털TV /방송",null,null,null,"IT(정보기술)"]
["공동",null,null,null,"공학",null,null,null,"응용",null,null,null,"물리학",null,null,null,"우주개발및탐사",null,null,null,"디스플레이",null,null,null,"BT(생명공학기술)"]
["산학협동",null,null,null,"의약보건학",null,null,null,"개발",null,null,null,"화학",null,null,null,"에너지생산/분배",null,null,null,"지능형로봇",null,null,null,"NT(나노기술)"]
[null,null,null,null,"농업과학",null,null,null,null,null,null,null,"생명과학",null,null,null,"환경",null,null,null,"미래형자동차",null,null,null,"ST(우주항공기술)"]
[null,null,null,null,"인문학",null,null,null,null,null,null,null,"지구과학\n(지구/대기/해양/천문)",null,null,null,"교통,전기통신등사회기반",null,null,null,"차세대반도체",null,null,null,"ET(환경기술)"]
[null,null,null,null,"사회과학",null,null,null,null,null,null,null,"기계",null,null,null,"에너지생산/분배",null,null,null,"차세대이동통신",null,null,null,"CT(문화기술)"]
[null,null,null,null,null,null,null,null,null,null,null,null,"재료",null,null,null,"산업생산및기술",null,null,null,"디지털콘텐츠/SW솔루션",null,null,null,"기타"]
[null,null,null,null,null,null,null,null,null,null,null,null,"화학공정",null,null,null,"건강",null,null,null,"지능형 홈네트워크"]
[null,null,null,null,null,null,null,null,null,null,null,null,"전기/전자",null,null,null,"농업",null,null,null,"바이오신약/장기"]
[null,null,null,null,null,null,null,null,null,null,null,null,"정보/통신",null,null,null,"교육",null,null,null,"차세대전지"]
[null,null,null,null,null,null,null,null,null,null,null,null,"농림수산식품",null,null,null,"문화,휴양,종교 및 매스미디어",null,null,null,"기타"]
[null,null,null,null,null,null,null,null,null,null,null,null,"에너지/자원",null,null,null,"정치,사회시스템,구조 및 과정"]
[null,null,null,null,null,null,null,null,null,null,null,null,"원자력",null,null,null,"지식의 일반적 진보"]
[null,null,null,null,null,null,null,null,null,null,null,null,"환경",null,null,null,"국방"]
[null,null,null,null,null,null,null,null,null,null,null,null,"건설/교통"]
[null,null,null,null,null,null,null,null,null,null,null,null,"역사/고고학"]
[null,null,null,null,null,null,null,null,null,null,null,null,"철학/종교\n(예술학,미학)"]
[null,null,null,null,null,null,null,null,null,null,null,null,"예술/문화/체육(디자인)"]
[null,null,null,null,null,null,null,null,null,null,null,null,"법"]
[null,null,null,null,null,null,null,null,null,null,null,null,"정치/행정"]
[null,null,null,null,null,null,null,null,null,null,null,null,"경제/경영"]
[null,null,null,null,null,null,null,null,null,null,null,null,"사회/인류/복지/여성"]
[null,null,null,null,null,null,null,null,null,null,null,null,"생활(소비자,의류,주거)"]
[null,null,null,null,null,null,null,null,null,null,null,null,"지리/지역/관광"]
[null,null,null,null,null,null,null,null,null,null,null,null,"심리"]
[null,null,null,null,null,null,null,null,null,null,null,null,"교육"]
[null,null,null,null,null,null,null,null,null,null,null,null,"미디어/커뮤니케이션/문헌정보"]
[null,null,null,null,null,null,null,null,null,null,null,null,"뇌과학"]
[null,null,null,null,null,null,null,null,null,null,null,null,"인지/감성과학"]
[null,null,null,null,null,null,null,null,null,null,null,null,"과학기술과인문사회"]
[null,null,null,null,null,null,null,null,null,null,null,null,"인력 및 인프라"]
[null,null,null,null,null,null,null,null,null,null,null,null,"문학"]
[null,null,null,null,null,null,null,null,null,null,null,null,"언어"]